{"text_format":"1","workbook":"xlsx","n_sheets":9,"sheets":["Expense Claim","Base_ Locations","Mileage (suggested guidelines)","Mileage","Name _Vendor_EFT","Account Info","Positions","GL_1","GL_Mileage"],"not_rendered":{"charts":0,"images":9,"macros":1,"external_links":3,"defined_names":65,"comments":1,"pivot_tables":0},"unopened":[],"bounds":{"document_bytes":16777216,"sheet_cells":100000,"rows_first":2000,"rows_last":500,"rows_between":2000,"halvings":0,"cell_chars":16384,"cell_head_chars":4096},"cells_cut":0,"cells_raw":0,"read":"whole","date_system":"1904"}

{"sheet":"Expense Claim","index":0,"n_rows":48,"n_cols":19,"rows_kept":48,"cut":false,"hidden":false,"merged":[[26,17,26,18],[21,17,21,18],[45,3,45,8],[39,11,39,13],[27,0,29,3],[37,14,37,18],[36,2,36,3],[35,0,35,1],[45,9,45,13],[42,3,42,4],[43,3,43,4],[40,5,40,6],[41,5,41,6],[42,5,42,6],[43,5,43,6],[40,7,40,10],[41,7,41,10],[42,7,42,10],[21,10,21,12],[24,10,24,12],[24,7,24,9],[22,17,22,18],[23,17,23,18],[24,17,24,18],[25,17,25,18],[46,9,46,13],[33,17,33,18],[36,0,36,1],[35,17,35,18],[36,14,36,15],[36,17,36,18],[27,7,27,9],[32,10,32,12],[33,10,33,12],[30,7,30,9],[34,7,34,9],[31,7,31,9],[34,10,34,12],[35,10,35,12],[35,7,35,9],[34,17,34,18],[27,17,27,18],[29,17,29,18],[30,17,30,18],[31,17,31,18],[32,17,32,18],[28,17,28,18],[38,14,38,16],[38,17,38,18],[47,9,47,13],[45,14,45,18],[41,11,41,13],[42,11,42,13],[43,11,43,13],[44,0,44,10],[46,0,47,2],[45,0,45,2],[39,14,39,16],[39,17,39,18],[40,11,40,13],[40,0,40,2],[41,0,41,2],[42,0,42,2],[43,0,43,2],[39,0,39,2],[47,14,47,18],[46,3,47,8],[46,14,46,18],[40,14,43,16],[44,11,44,13],[40,17,43,18],[44,14,44,18],[41,3,41,4],[11,8,11,9],[4,8,4,9],[16,7,16,9],[5,1,5,7],[5,8,5,9],[5,10,5,13],[13,8,13,17],[17,0,20,3],[15,0,16,3],[18,7,18,9],[14,0,14,18],[15,17,16,18],[17,17,17,18],[18,17,18,18],[19,17,19,18],[20,17,20,18],[20,10,20,12],[17,7,17,9],[20,7,20,9],[23,7,23,9],[23,10,23,12],[6,0,8,0],[9,1,9,7],[0,0,2,7],[0,8,2,18],[36,4,36,13],[6,8,6,9],[4,10,4,13],[6,10,6,13],[12,10,12,13],[17,10,17,12],[18,10,18,12],[11,10,11,13],[22,10,22,12],[16,10,16,12],[19,10,19,12],[25,10,25,12],[7,10,7,13],[8,10,8,13],[9,10,9,13],[10,10,10,13],[15,4,15,16],[16,4,16,6],[27,4,27,6],[3,8,3,18],[3,0,4,0],[3,1,4,7],[43,7,43,10],[38,3,38,4],[38,5,38,6],[38,7,38,10],[7,1,7,7],[8,1,8,7],[37,0,37,13],[18,4,18,6],[19,4,19,6],[20,4,20,6],[21,4,21,6],[22,4,22,6],[23,4,23,6],[24,4,24,6],[25,4,25,6],[26,4,26,6],[26,7,26,9],[25,7,25,9],[27,10,27,12],[32,7,32,9],[29,7,29,9],[21,0,23,3],[26,10,26,12],[17,4,17,6],[11,0,13,0],[22,7,22,9],[33,7,33,9],[33,0,34,1],[33,2,34,3],[31,10,31,12],[28,10,28,12],[28,7,28,9],[24,0,26,3],[11,1,13,7],[6,1,6,7],[8,8,8,9],[9,8,9,9],[10,8,10,9],[21,7,21,9],[7,8,7,9],[12,8,12,9],[19,7,19,9],[28,4,28,6],[10,1,10,7],[38,11,38,13],[40,3,40,4],[39,3,39,4],[39,5,39,6],[39,7,39,10],[38,0,38,2],[29,4,29,6],[30,4,30,6],[31,4,31,6],[32,4,32,6],[33,4,33,6],[34,4,34,6],[35,4,35,6],[30,0,32,3],[35,2,35,3],[30,10,30,12],[29,10,29,12]]}
[null,null,null,null,null,null,null,null,"2024/25 EMPLOYEE EXPENSE CLAIM Casual Bus Driver Only"]
[]
[]
["Name",null,null,null,null,null,null,null,"Meals/Other"]
[null,null,null,null,null,null,null,null,"Date",null,"Reason",null,null,null,"Breakfast Max $10","Lunch  Max $15","Dinner Max $20","Other","Total"]
["Vendor# and IO#",{"$f":"VLOOKUP(B4, 'Name _Vendor_EFT'!A:B, 2, FALSE)","v":{"$error":"#N/A"}},null,null,null,null,null,null,null,null,null,null,null,null,null,null,null,null,{"$f":"IF(SUM(O6:R6)=0,\"\",(SUM(O6:R6)))","v":""}]
["Address",null,null,null,null,null,null,null,null,null,null,null,null,null,null,null,null,null,{"$f":"IF(SUM(O7:R7)=0,\"\",(SUM(O7:R7)))","v":""}]
[null,null,null,null,null,null,null,null,null,null,null,null,null,null,null,null,null,null,{"$f":"IF(SUM(O8:R8)=0,\"\",(SUM(O8:R8)))","v":""}]
[null,null,null,null,null,null,null,null,null,null,null,null,null,null,null,null,null,null,""]
["Base Location",null,null,null,null,null,null,null,null,null,null,null,null,null,null,null,null,null,""]
["Position","Spare Bus Driver",null,null,null,null,null,null,null,null,null,null,null,null,null,null,null,null,""]
["Reason for Claim",null,null,null,null,null,null,null,null,null,null,null,null,null,null,null,null,null,""]
[null,null,null,null,null,null,null,null,null,null,null,null,null,null,null,null,null,null,""]
[null,null,null,null,null,null,null,null,"Subtotal Meals/Other",null,null,null,null,null,null,null,null,null,{"$f":"IF(SUM(S5:S13)=0,\"\",(SUM(S5:S13)))","v":""}]
[]
["Expense Claim Instructions:  ",null,null,null,"KILOMETERS DRIVEN",null,null,null,null,null,null,null,null,null,null,null,null,"REASON"]
[null,null,null,null,"Date",null,null,"From",null,null,"To",null,null,"Bus#","KM's","Less 22km","Total KM's"]
["1. Please ensure all information is filled out in full, original itemized receipts are attached, and correct approval is obtained.   Incomplete claims will be returned.",null,null,null,null,null,null,null,null,null,null,null,null,null,null,"-22",{"$f":"IF(O18=0,\"\",(O18+P18))","v":""}]
[null,null,null,null,null,null,null,null,null,null,null,null,null,null,null,"-22",""]
[null,null,null,null,null,null,null,null,null,null,null,null,null,null,null,"-22",""]
[null,null,null,null,null,null,null,null,null,null,null,null,null,null,null,"-22",""]
["2. Please submit only the original claim on a monthly basis.  Photocopies or faxes are not accepted.",null,null,null,null,null,null,null,null,null,null,null,null,null,null,"-22",""]
[null,null,null,null,null,null,null,null,null,null,null,null,null,null,null,"-22",""]
[null,null,null,null,null,null,null,null,null,null,null,null,null,null,null,"-22",""]
["3.  Further information can be found in Policy#520 Staff Travel and Expense located on the SSRCE website. ",null,null,null,null,null,null,null,null,null,null,null,null,null,null,"-22",""]
[null,null,null,null,null,null,null,null,null,null,null,null,null,null,null,"-22",""]
[null,null,null,null,null,null,null,null,null,null,null,null,null,null,null,"-22",""]
["4.  In the Kilometres Driven section, please use the civic address",null,null,null,null,null,null,null,null,null,null,null,null,null,null,"-22",""]
[null,null,null,null,null,null,null,null,null,null,null,null,null,null,null,"-22",""]
[null,null,null,null,null,null,null,null,null,null,null,null,null,null,null,"-22",""]
["4. If additional space is required, please use a second claim form. ",null,null,null,null,null,null,null,null,null,null,null,null,null,null,"-22",""]
[null,null,null,null,null,null,null,null,null,null,null,null,null,null,null,"-22",""]
[null,null,null,null,null,null,null,null,null,null,null,null,null,null,null,"-22",""]
["Kilometers",null,"Rate",null,null,null,null,null,null,null,null,null,null,null,null,"-22",""]
[null,null,null,null,null,null,null,null,null,null,null,null,null,null,null,"-22",""]
["0-16,000 km",null,".5838/km",null,null,null,null,null,null,null,null,null,null,null,null,"-22",""]
["16,000.1 + km",null,".5153/km",null,"Total Kilometers Claimed",null,null,null,null,null,null,null,null,null,0.58379999999999999,null,{"$f":"IF(SUM(Q18:Q36)=0,\"\",(SUM(Q18:Q36)))","v":""}]
["ACCOUNTING INFORMATION",null,null,null,null,null,null,null,null,null,null,null,null,null,"TOTALS"]
["GL# and  Explanation",null,null,"Fund Center",null,"Fund",null,"Functional Area",null,null,null,"Amount",null,null,"Total Meals/Other",null,null,{"$f":"S14","v":""}]
["631100 Mileage",null,null,68978731,null,1000,null,5100000000,null,null,null,{"$f":"R40","v":""},null,null,"Total Mileage",null,null,{"$f":"IF(Q37<=16000,Q37*O37,\"\")","v":""}]
["731300 - License Renewal",null,null,68978731,null,1000,null,5100000000,null,null,null,null,null,null,"AMOUNT OF CLAIM",null,null,{"$f":"IF(SUM(R39:R40)>=1,SUM(R39:R40),\"\")","v":""}]
[]
[]
[]
["Total Accounting Distribution: ",null,null,null,null,null,null,null,null,null,null,{"$f":"R41","v":""}]
["Date Submitted:",null,null,null,null,null,null,null,null,"Date Approved:"]
["Claimant's Signature:",null,null,null,null,null,null,null,null,"Approved By (print):"]
[null,null,null,null,null,null,null,null,null,"Approval  Signature:"]

{"sheet":"Base_ Locations","index":1,"n_rows":32,"n_cols":1,"rows_kept":32,"cut":false,"hidden":true,"merged":[]}
["Aspotogan Consolidated"]
["Autism Centre"]
["Bayview Community School"]
["Big Tancook Elementary"]
["Bluenose Academy"]
["Board Office"]
["Bridgewater Bus Garage"]
["Bridgewater Elementary"]
["Bridgewater Jr/Sr High School"]
["Chester Area Middle School"]
["Chester District Elementary"]
["Dr. JC Wickwire Academy"]
["Forest Heights Community School"]
["Greenfield Elementary"]
["Hebbville Academy"]
["Liverpool Regional High "]
["Innovative Learning Center"]
["Mahone Bay Alternate"]
["New Germany Elementary"]
["New Germany Rural High"]
["New Ross Consolidated"]
["Newcombville Elementary"]
["North Queens Bus Garage"]
["North Queens Community School"]
["Park View Education Centre"]
["Pentz Elementary"]
["Petite Riviere Elementary"]
["Queens Adult High (old Gorham)"]
["South Queens Middle School"]
["South Shore Regional School Board"]
["Verge (subset of BHS)"]
["West Northfield Elementary"]

{"sheet":"Mileage (suggested guidelines)","index":2,"n_rows":92,"n_cols":4,"rows_kept":92,"cut":false,"hidden":false,"merged":[[40,0,40,1],[4,0,6,0],[0,0,0,3],[1,0,1,3],[2,0,2,3],[38,0,38,1],[39,0,39,1]]}
["SOUTH SHORE REGIONAL SCHOOL BOARD"]
["BOARD OFFICE KILOMETRE CHART"]
["SUGGESTED GUIDELINES"]
[]
["From the Bridgewater Board Office","To ","One Way","Return"]
[null,"Aspotogan Consolidated",66,{"$f":"C6*2","v":132}]
[null,"Bayview Community School",19.5,39]
[null,"Big Tancook Elementary",50.5,101]
[null,"Bluenose Academy",20,{"$f":"C9*2","v":40}]
[null,"Bridgewater Elementary",1.5,3]
[null,"Bridgewater Jr/Sr High School",1.5,3]
[null,"Chester Area Middle School",48,96]
[null,"Chester District Elementary",48,96]
[null,"Dr. JC Wickwire Academy",48.5,97]
[null,"Forest Heights Community School",38,76]
[null,"Greenfield Elementary",35,70]
[null,"Hebbville Academy",9,18]
[null,"Liverpool Regional High ",48,96]
[null,"New Germany Elementary",35,70]
[null,"New Germany Rural High",35,70]
[null,"New Ross Consolidated",60,120]
[null,"Newcombville Elementary",10,20]
[null,"North Queens Community School",51,102]
[null,"Park View Education Centre",2,4]
[null,"Pentz Elementary",13.5,27]
[null,"Petite Riviere Elementary",27.5,55]
[null,"Queens Community Education",47.5,{"$f":"C27*2","v":95}]
[null,"South Queens Middle School",47,94]
[null,"West Northfield Elementary",12,24]
[null,"Other Locations"]
[null,"Airport (Halifax International)",132,{"$f":"C31*2","v":264}]
[null,"Dartmouth",105,{"$f":"C32*2","v":210}]
[null,"Halifax",103,{"$f":"C33*2","v":206}]
[null,"Truro",175,{"$f":"C34*2","v":350}]
[null,"Yarmouth Board Office",204,{"$f":"C35*2","v":408}]
[]
[]
[]
["SOUTH SHORE REGIONAL SCHOOL BOARD"]
["INTER-SCHOOL DISTANCES KILOMETRE CHART"]
["SUGGESTED GUIDELINES"]
["From","To School","One Way"]
["Aspotogan Consolidated","Chester Area Middle School",26]
[null,"Chester District Elementary",26]
["Bayview Community Schoool","Lunenburg Academy",13.5]
[null,"Bridgewater Jr/Sr High School",22.5]
["Bluenose Academy","Bridgewater Jr/Sr High School",20]
[null,"Chester Area Middle School",28]
[null,"Forest Heights Community School",15]
[null,"Park View Education Centre",22]
[null,"New Germany Rural High",47]
["Chester Schools","Forest Heights Community School",13]
[null,"New Ross Consolidated",25]
[null,"Bayview Community Schoool",25.5]
["Dr. JC Wickwire Academy","Queens Community Ed",1]
["Forest Heights Community School","New Ross Consolidated",20]
[null,"Chester Area Middle School",13]
[null,"Bridgewater Jr/Sr High School",33.5]
[null,"Park View Education Centre",37]
["Queens Community Ed","Greenfield Elementary",32.5]
["Greenfield Elementary","Newcombville Elementary",24.5]
["Hebbville Academy","Bridgewater Jr/Sr High School",7.5]
[null,"Newcombville Elementary",19]
[null,"Petite Riviere Elementary",18.5]
[null,"Pentz Elementary",4.5]
[null,"Park View Education Centre",11]
["Liverpool Regional High ","South Queens Jr. High",1]
[null,"Park View Education Centre",50]
[null,"Bridgewater Jr/Sr High School",48.5]
[null,"Hebbville Academy",39]
[null,"North Queens Schools",50.5]
["Bluenose Academy","Bridgewater Jr/Sr High School",20]
[null,"Chester Area Middle School",28]
[null,"Forest Heights Community School",15]
[null,"Park View Education Centre",22]
[null,"New Germany Rural High",47]
["New Germany Elementary","West Northfield Elementary",15]
[null,"Bridgewater Elementary",28.5]
["New Germany Rural High","Bridgewater Jr/Sr High School",25]
[null,"Park View Education Centre",26]
[null,"Forest Heights Community School",39]
["North Queens Schools","Greenfield Elementary",34.5]
[null,"New Germany Rural High",41.5]
["Newcombville Elementary","Bridgewater Elementary",12]
[null,"West Northfield Elementary",20]
["Pentz Elementary","Petite Riviere Elementary",14]
["Petite Riviere Elementary","Hebbville Academy",18.5]
["South Queens Jr. High","Hebbville Academy",38]
[null,"North Queens Schools",51.5]
["West Northfield Elementary","Bayview Community Schoool",31]
[null,"New Germany Rural High",15]
[null,"Park View Education Centre",10]

{"sheet":"Mileage","index":3,"n_rows":28,"n_cols":2,"rows_kept":28,"cut":false,"hidden":true,"merged":[]}
[0.58379999999999999,"2023-24"]
[0.51529999999999998,"2023-24 16001 and over"]
[]
[]
[]
[]
[]
[]
[]
[]
[]
[]
[]
[]
[]
[]
[]
[]
[]
[]
[]
["Kilometrage and Transportation Allowance Rate Changes Effective April 1, 2017"]
[]
["A. KILOMETRAGE REIMBURSEMENT RATES"]
["REGULAR RATES"]
["KILOMETRES DRIVEN OLD RATE NEW RATE"]
["0-16 000 km 42.31 ¢/km  to 42.89¢/km"]
["16 000.1+ km 37.34 ¢/km to 37.85 ¢/km"]

{"sheet":"Name _Vendor_EFT","index":4,"n_rows":1874,"n_cols":2,"rows_kept":1874,"cut":false,"hidden":true,"merged":[]}
["Employee Name","Vendor No"]
["ACTON-BOND, ALEXANDRIA","22068074"]
["ADAMS FRANK, DARCELLE","22033114"]
["AHMAD, ANGELA","22066260"]
["ALCOE-HOLLAND, GILLEAN","22000182"]
["ALEXANDER, HILLARY","22065336"]
["ALIPHAT, MARY S","22010505"]
["ALLEN, DENISE","22000217"]
["ALLEN, WENDY J.","22011752"]
["ALLERY, HAYLEY","22068319"]
["ALPHONSO, JOANNA","22063932"]
["AMIRAULT, TANIA","22012717"]
["AMIRO, RUTH","22005735"]
["ANDERSON, JENNIFER","22053517"]
["ANDERSON, SHARON","22051662"]
["ANDREWS, ANGELA S.","22011591"]
["ANDREWS, ELIZABETH","22000297"]
["ANDREWS, LAURIE","22003903"]
["ANGUI, EUNICE","22051343"]
["ANTHONY, KAREN M.","22000338"]
["ARAB, PATRICIA","22015847"]
["ARCHIBALD, EMILY","22063491"]
["ARENBURG, HILARY","22052103"]
["ARENBURG, MATTHEW","22065789"]
["ARENBURG, WENDY","22064860"]
["ARMSTRONG, BEVERLY","22022376"]
["ARMSTRONG, KELCEY","22043518"]
["ARMSTRONG, KIMBERLEY","22017635"]
["ASH, PAUL","22058473"]
["ASHE, SHEILA","22043130"]
["ASPREY, AMANDA","22058272"]
["ATHERTON, JOHN","22014756"]
["ATHERTON, TINA","22033621"]
["ATKINS, CONNIE","22032366"]
["ATWOOD, STEPHANIE","22068585"]
["ATWOOD, TARAN","22054064"]
["AUCOIN, J RAYMOND","22000467"]
["AULENBACK, ROBERT","22018178"]
["AVRAMENKO, DEREK","22063383"]
["BABAKAEVA, IRINA","22067969"]
["BACKMAN, CASSIE L","22000510"]
["BACKMAN, EMILY","22056053"]
["BAILEY, JENNA","22043686"]
["BAKER, DENISE","22051418"]
["BAKER, LISA","22000539"]
["BAKER, PAMELA","22019216"]
["BAKER, PAULA ANNE","22000541"]
["BAKER, SAMANTHA","22043687"]
["BAKER, SARAH","22016857"]
["BAKER, TRACY","22043317"]
["BAKER-RAWDING, ANDREA","22011754"]
["BALCOM, GREG G.","22031398"]
["BALDWIN-PENNY, SARAH","22017553"]
["BANFIELD, MICHELLE","22048076"]
["BAO, YUNXIAN","22067261"]
["BARCLAY, ALEXANDRA","22043679"]
["BARKER, KELLY","22043599"]
["BARKHOUSE, JARED","22052965"]
["BARKHOUSE, JESSICA","22053210"]
["BARKHOUSE, SHARON R.","22000616"]
["BARRE', MARC","22068346"]
["BARRIER, RUSSELL A.","22000632"]
["BARRY, CRYSTALANN L","22015744"]
["BARRY, ELIZABETH","22033107"]
["BARRY, LINDA","22000643"]
["BARTON, KRISTA","22049400"]
["BAXTER, TAMMY","22065052"]
["BAZOT, AMBROISE","22018953"]
["BEAZLEY, JODI","22066399"]
["BECK-SAYER, ASHLEY","22043663"]
["BEDGOOD, TRACY","22013539"]
["BELL, KENNETH","22031652"]
["BELL, STEPHANIE","22047292"]
["BELLIVEAU WOOD, JASON","22032061"]
["BELL-RICHARDS, ROBYN","22017454"]
["BENJAMIN, KONNOR","22068775"]
["BENNETT, KYLIE","22064783"]
["BENNETT, LORI","22018928"]
["BENOIT, SASHA","22033108"]
["BENT-RICHARD, ABBEY","22068586"]
["BERESFORD, JENNIFER","22067331"]
["BERGMAN, SOMER","22056559"]
["BERRIGAN, JANE","22008952"]
["BESAN, BARTHOLOMEW","22044615"]
["BEST, ANDREW","22067077"]
["BEST, JAKE","22054613"]
["BEST, MICHAEL","22021510"]
["BEYNON, PAGE","22065930"]
["BEZEAU, RYAN","22014763"]
["BIGELOW, ROBIN \"PHIL\"","22066838"]
["BILLIALD, NICOLE","22068318"]
["BIRD, CONNIE","22017927"]
["BIRD, MITCHELL","22017288"]
["BISHOP, MELISSA","22070488"]
["BISHOP, STEVEN","22017964"]
["BLAIR, KELLY","22001005"]
["BLAKENEY, DEBORAH","22052819"]
["BLANCHARD, ALEX","22043678"]
["BLANCHARD, ALICIA","22043682"]
["BLANCHARD, CALEE","22022458"]
["BLANCHARD, CORY","22059619"]
["BLINN, KANDI","22049828"]
["BLINN, SIDNEE","22066193"]
["BOGGILD-SMITH, TOVA","22071818"]
["BOIVIN-JODOIN, VIRGINIE","22047044"]
["BOLIVAR SABEAN, SHELLEY","22010029"]
["BOLIVAR, CRAIG","22032572"]
["BOLIVAR-GETSON, CAROLYN","22019039"]
["BOND, BLAINE","22044596"]
["BOND, ELIJAH","22064785"]
["BOND, LEWIS","22065739"]
["BOND, LISA","22001068"]
["BOND-NOWE, BEVERLY","22053816"]
["BONFIELD, FRANCES","22022457"]
["BONNEY, MATTHEW","22032389"]
["BONNEY, VICTORIA","22047523"]
["BOUTILIER, KRISTY","22014651"]
["BOUTILIER, RICHARD J","22013980"]
["BOWER, CHRISTINA","22044932"]
["BOWERS, SANDRA","22013191"]
["BOWER-VEINOTTE, WANDA","22021104"]
["BOWER-VEINOTTE, WANDA E","22021104"]
["BOWLES, LENDER","22045359"]
["BRACEY, DAVID","22068906"]
["BRACKEN, KATIE","22022542"]
["BRAGG, JAMES D","22022019"]
["BRAZILL, KAREN MARIE","22008591"]
["BREAUGH, MARC","22015890"]
["BREAULT, DEBBIE","22054851"]
["BRECKON, HILARY","22017453"]
["BRENNAN, DAVID","22043347"]
["BRENNAN, JANINE","22014270"]
["BRENNAN, JESSICA","22053539"]
["BREWSTER, NANCY","22017860"]
["BREWSTER-POTTER, BRENDA","22011739"]
["BRIAND, CHANCE","22068218"]
["BRIDEAU-CLARK, ELIZABETH","22001394"]
["BRIGLEY, SARA","22059660"]
["BRINE, SHERRY","22001399"]
["BRISTOL, DARCY","22045087"]
["BRITTAIN, TANYA MARIE","22017452"]
["BRITTEN, CHRISTOPHER","22016931"]
["BRITTEN, SHELLEY","22001409"]
["BROADBENT, ELIZABETH","22010324"]
["BROGAN, KELLY","22001736"]
["BROOKS, CHARLOTTE","22001417"]
["BROOME, DAVID","22017036"]
["BROOME, SHELDON","22001420"]
["BROSHA, SONYA","22055055"]
["BROWN, BRENDA","22003736"]
["BROWN, NICHOLAS","22065654"]
["BROWN, NICOLE","22065492"]
["BROWN, PENNEY","22055756"]
["BROWN, RHEAD","22017874"]
["BROWN, SARAH","22048225"]
["BROWN, SHARON","22032502"]
["BROWN, TINA","22033533"]
["BROWN, TRACEY","22017398"]
["BROWN, VERONICA","22053473"]
["BROWN, WILLIAM C","22007294"]
["BROWN-HALEY, VALERIE","22013540"]
["BROWN-LAVERIE, LEEANN","22019520"]
["BRUCE, HOLLY","22011828"]
["BRUHM, CYNTHIA","22007055"]
["BRUHM, CYNTHIA","22063982"]
["BRUHM, DALE","22001513"]
["BRUNT, DONNA M.","22001517"]
["BRYAN, ANGELA","22018175"]
["BRYAN, PATRICK","22066723"]
["BUCKLE, ASHLEY","22065439"]
["BUDDEN, DARYL","22013492"]
["BUDGELL, CRAIG","22066192"]
["BUELL, JEFFREY","22067343"]
["BUFFETT, CARRIE","22001559"]
["BUMSTEAD, OKSANA","22063049"]
["BURCHELL, SHARON A","22014401"]
["BURGESS, DENISE","22016771"]
["BURGESS, GLENN","22049218"]
["BURGESS, JACQUELINE","22059661"]
["BURKE, ANGELA","22001571"]
["BURRIDGE, C. ELIZABETH","22017195"]
["BURRIS, CHRISTOPHER","22063510"]
["BURRIS, SHIRLEY","22053590"]
["BUSH, AMY","22043290"]
["BUSH, CHELSEA","22065971"]
["BUSH, DENISE","22019291"]
["BUSH, EMMA","22053538"]
["BUTT, BYRON","22001672"]
["BUTT, CHARLOTTE","22001675"]
["CAINEN, GEOFFREY","22031956"]
["CALDWELL, STEPHANIE","22001716"]
["CALWAY, E JANE","22063309"]
["CAMERON, JACQUELINE","22065566"]
["CAMERON, RANDALL","22000023"]
["CAMERON-KLUGE, SYLVIA","22008956"]
["CAMP, ALEXANDRA","22017280"]
["CAMP, ANNA M.","22000033"]
["CAMPBELL, HEATHER","22063998"]
["CAMPBELL, JOHN LEO","22000053"]
["CAMPBELL, KELLY","22064282"]
["CAMPBELL, RUTH ANN","22053547"]
["CAMPBELL, SUZANNE","22022725"]
["CANNON, BRODY","22010552"]
["CAREY, ANNETTE","22011755"]
["CARROLL, LINDSAY","22053446"]
["CARSON, ANNA","22065110"]
["CARSON, GRANT","22070835"]
["CARTER, JESSICA","22070611"]
["CARVER, GERTON ALLAN","22059354"]
["CATTON, SHANNON","22016101"]
["CAYEA, CARIE","22068454"]
["CHAFE, HAYLI","22070291"]
["CHAFE, DUKE (LEO)","22075183"]
["CHALDECOTT, HEATHER","22000189"]
["CHAMBERS, CORINNE","22049021"]
["CHANDLER, JULIE","22017012"]
["CHANDLER, LISA","22018578"]
["CHANDLER, MEGAN","22066512"]
["CHANDLER, SHEREE","22000201"]
["CHANDLER, SUSAN S","22017400"]
["CHAPMAN, BARBARA","22033411"]
["CHAPMAN, CHRISTINE","22016003"]
["CHAPMAN, MICHAEL","22012674"]
["CHAPUT, COLIN","22043485"]
["CHAPUT, KELLY","22070762"]
["CHARRON, PAUL","22033109"]
["CHASE, JAYLENE","22017013"]
["CHIASSON, JONATHAN R","22000284"]
["CHIASSON, MELISSA","22052433"]
["CHILDS, JALENA","22013188"]
["CHISHOLM, ALLISON","22022552"]
["CHISHOLM, MARY","22017289"]
["CHRISTIAN, OWEN","22058172"]
["CHURCHILL, EVA","22019148"]
["CLARK, CHRISTINE","22000423"]
["CLATTENBURG, BRUCE","22032469"]
["CLATTENBURG, PATRICIA","22063771"]
["CLEMENTS, NINA","22067187"]
["CLENDENNING, BENJAMIN","22021672"]
["CLEVELAND, GAIL","22059919"]
["COCHRANE, BARBARA A","22000491"]
["COCHRANE, TERI","22000495"]
["COGAN-SYLVESTER, KELLY","22018212"]
["COLLINS, DAVID","22067815"]
["COLLINS, MELANIE","22043313"]
["COLLINS, SARAH JANE","22000530"]
["COMEAU, DIANNE","22066461"]
["COMEAU, GASTON","22000570"]
["COMEAU, IAN DAVID","22010086"]
["COMEAU, J. TRACY","22010087"]
["COMEAU, RICHARD","22000601"]
["COMEAU, STEFANIE","22018066"]
["COMSTOCK, MEGAN","22016308"]
["CONKLIN, PATTI","22000622"]
["CONNOLLY, KAREN E.","22000649"]
["CONNOLLY, SHELLY","22000639"]
["CONNORS, BROOKE","22019044"]
["CONRAD III, FRED W.","22000656"]
["CONRAD, ALLEN","22009084"]
["CONRAD, ANDREA","22011167"]
["CONRAD, BRENDA","22022621"]
["CONRAD, CHRISTA E.","22000652"]
["CONRAD, FELICITY","22054852"]
["CONRAD, GAIL","22018686"]
["CONRAD, JACOB","22060531"]
["CONRAD, ROBERT","22049301"]
["CONRAD, SHERRENE","22019239"]
["CONRAD, STARLENE","22064277"]
["CONRAD, TASHA","22054853"]
["CONRAD, VICKI","22063986"]
["CONRAD-PELLETIER, JOSEE","22053464"]
["CONWAY, TINA","22057093"]
["COOK, AUDREY","22067465"]
["COOK, BENJAMIN","22059440"]
["COOK, EVA","22033243"]
["COOK, JASON M","22043478"]
["COOK, MELISSA","22053419"]
["COOK, MELISSA","22053419"]
["COOK, SONYA","22011756"]
["COOK, STEPHANIE","22014768"]
["COOK, THOMAS","22047856"]
["COOK, TRACEY L","22010702"]
["COOK, VICTORIA","22067925"]
["COOK-BENT, CANDACE T.","22014844"]
["COOK-FOREST, BRENDA","22055247"]
["COOLEN, JENNIFER","22060681"]
["COOPER, BRIAN","22000697"]
["CORBETT, JEAN","22065567"]
["CORBETT, KEVIN ERNEST","22010509"]
["CORESCHI, ANDREA","22007635"]
["CORKUM CARVER, MARY ANN","22055391"]
["CORKUM, AMBER","22033110"]
["CORKUM, ASHLEY","22043269"]
["CORKUM, BRENTON","22011363"]
["CORKUM, CHANTEL","22046304"]
["CORKUM, DEBORAH","22043205"]
["CORKUM, ELIZABETH","22014378"]
["CORKUM, HAL L.","22000722"]
["CORKUM, IAN","22000724"]
["CORKUM, JANET","22016342"]
["CORKUM, JANICE","22053518"]
["CORKUM, JAYLENE","22052955"]
["CORKUM, JESSICA","22053941"]
["CORKUM, KATELYN","22048327"]
["CORKUM, MELISSA","22069971"]
["CORKUM-MYRA, MALLARY","22056811"]
["CORKUM-OICKLE, BOBBI JO","22013170"]
["COUNTWAY, JAIME","22021886"]
["COUSINS, MELANIE","22021514"]
["COVEY, KAREN","22003447"]
["COX, JENNIFER","22019144"]
["CRAGG, JESSICA","22067379"]
["CRAWFORD, KARALEE","22017507"]
["CREASER, ALISON","22054080"]
["CREASER, ALISON","22054080"]
["CREASER, ERIN","22071130"]
["CREASER, KATHRYN","22015906"]
["CREASER, VANDALEA","22010511"]
["CRESWELL, AMANDA","22053237"]
["CREWS, RHONDA","22011757"]
["CROCKER, JULIE","22033111"]
["CROFT, ADAM","22014117"]
["CROFT, BRENDA","22004573"]
["CROFT, CATHERINE","22000864"]
["CROFT, LAURA","22033534"]
["CROSBY, JACQUELINE","22053481"]
["CROSS, ALICIA N.","22000892"]
["CROSSLAND, ELIZABETH","22000897"]
["CROUSE, ALICIA","22054012"]
["CROUSE, ANDREA J","22000904"]
["CROUSE, ANN MARIE","22010710"]
["CROUSE, DENISE","22010418"]
["CROUSE, ENGELINA","22014846"]
["CROUSE, JULIE","22053447"]
["CROUSE, KELSEY","22053519"]
["CROUSE, KELSEY","22053519"]
["CROUSE, WAYNE","22017885"]
["CROUSE-EISNOR, RHODA","22053585"]
["CROWE, JILL","22064456"]
["CROWELL, MICHELLE","22068971"]
["CROWELL, SUSAN","22000935"]
["CROZIER, VICTORIA L","22008139"]
["CRUICKSHANK-TOPPING, CHERYL","22071596"]
["CULLEN-SHANO, SHANNON","22067944"]
["CUMMINGS, BRIAN","22043666"]
["CUNNINGHAM, ALMON F","22007056"]
["CUNNINGHAM, DAVID","22032490"]
["CUNNINGHAM, HELEN","22000960"]
["CURRAN, ELAINE","22015885"]
["CURRIE, MARK A.","22000983"]
["CURRY, DAWN","22001000"]
["CURRY, MICHAEL","22016040"]
["CURTIS, LYNNETTE","22049393"]
["CUSHING, LANCE","22053772"]
["CUTLER, NORMA","22001017"]
["DAGENAIS, TAYLOR","22053755"]
["DAGLEY, CINDY","22043726"]
["DAGLEY, TONY","22013717"]
["DAHL, DARREN","22015756"]
["DAISLEY, SARAH","22066672"]
["DAKAI-JOLLIMORE, KATHERINE","22001041"]
["DALCOURT, GREGORY","22050703"]
["DANIELS, CHRISTINE","22001066"]
["DANIELS, DOUGLAS W","22032078"]
["DANIELS, PATRICIA","22044336"]
["DANIELS, TANYA","22011758"]
["DANIELS, YVONNE","22043712"]
["D'ARCY, KEVIN","22019028"]
["DARES, CHRISTOPHER",22075044]
["DARES, JACOB","22063433"]
["DARNELL, VIDA","22017279"]
["DAUPHINEE, ANNETTE","22001094"]
["DAUPHINEE, JOANNE","22001096"]
["DAUPHINEE, MICHAEL","22032424"]
["DAVIDSON ENO, SELENA","22011760"]
["DAVIDSON, ANDREA","22033112"]
["DAVIDSON, TARA","22044270"]
["DAVIS, LORI","22060801"]
["DAVISON, PAULA","22021990"]
["DEAGLE, AMANDA","22022558"]
["DEAKIN, ALANNA","22067819"]
["DEARING, TINA","22044241"]
["DECKER, CHERYL","22047245"]
["DECKER, RICHARD","22052789"]
["DEIGHTON, LORNA","22001231"]
["DEIGHTON, WAYNE","22001233"]
["DELONG, CHRISTINE","22014772"]
["DELONG, JULIANA","22043131"]
["DELONG, VALERIE R.","22001260"]
["DELOREY, AMY","22043717"]
["DELORY, SHEILA A.","22001280"]
["DEMOND, SARAH","22018431"]
["DEMONE, BROOKE","22060799"]
["DEMONE, RYAN","22013179"]
["DEMONE, TRISHA","22013178"]
["DEMONE, TRUDY","22010712"]
["DEMONT, EMMA","22072517"]
["DEMONT, TERRI L","22032583"]
["DENNIS, ANDREA DAWN","22016845"]
["D'ENTREMONT, FRANKLIN","22033362"]
["D'EON, LEAH","22032067"]
["DESCHAMPS, MARTIN","22032845"]
["DESGROSSEILLIERS, LOUIS","22070957"]
["DEWOLFE, JEFF","22001493"]
["DEWOLFE-FRASER, EMILY","22001496"]
["DEXTER, JAMES","22001499"]
["DICKS, KENNETH \"STEPHEN\"","22066693"]
["DICKS, TERRY","22009085"]
["DIEPENVEEN, HANNAH","22067945"]
["DIEPENVEEN, SHELLEY","22013180"]
["DIETRICH, EUGENIA","22019050"]
["DIXON, ASHLEY","22068937"]
["DIXON, EMILY","22067926"]
["DOANE-NORWOOD, BETH-ANN","22008943"]
["DOBSON, WARREN","22001584"]
["DODGE, LUCAS","22063995"]
["DODGE, SYLVIA D","22010830"]
["DODGE-BAKER, DENISE","22001593"]
["DOGGETT, W ALEXANDER","22001596"]
["DOIG, ELIZABETH","22015231"]
["DOMINIX, JUDITH","22010512"]
["DONAT, OWEN","22001642"]
["DORE, MICHAEL","22016918"]
["DORE, VALARIE","22055576"]
["DOREY, JOAN","22043204"]
["DOREY, STACEY","22032748"]
["DOREY, TYLER","22021374"]
["DORMAN, FRASER","22001676"]
["DORNAN, JANET","22003744"]
["DOUCET, DAVID","22051340"]
["DOUCET, RONALD","22001721"]
["DOUCETTE, GAIL","22033113"]
["DOUCETTE, JOHN","22017300"]
["DOUCETTE, MURRAY","22050429"]
["DOUCETTE, TERRENCE","22001742"]
["DOUCETTE-LE MOINE, CHANTAL","22054833"]
["DRAKE, ELIZABETH A.","22001759"]
["DRAKE, SARAH","22043661"]
["D'SOUZA, CYNTHIA","22046206"]
["DUFFNEY, TRACEY","22014840"]
["DUGGAN, MATTHEW","22022551"]
["DUMOULIN, JOSEE","22031924"]
["DUNN, ERIN","22021349"]
["DUNN, JEREMY","22051007"]
["DUNN, MARY COLLEEN","22014389"]
["DUPERE, KARINA","22032778"]
["DURNFORD, JOAN","22067309"]
["DURNFORD, SAMUEL","22050838"]
["EAGLES, SARAH","22043307"]
["EARLE, HOLLY","22071186"]
["EASON, LAMAR","22032089"]
["EDDY, G CLAIRE","22001903"]
["EDDY, SONYA","22014774"]
["EDMONDS, AMANDA","22065218"]
["EDMONDS, RACHEL","22053613"]
["EDWARDS, LEE-ANN","22052748"]
["EDWARDS, SARAH","22065568"]
["EGILSSON, DAPHNE","22001915"]
["EIKLE, MELISSA","22043248"]
["EISENER, EARLEN G.","22013959"]
["EISENER, JANET","22043119"]
["EISENHAUER, MARCIA","22019183"]
["EISNOR, ANTHONY","22001941"]
["EISNOR, CORINNE MERT","22001934"]
["EISNOR, JENNIFER","22049873"]
["EISNOR, NANCY","22001936"]
["ELDERSHAW, BERNARD","22018688"]
["ELLIOTT, BERNADINE","22010621"]
["ELLIOTT, JASON","22052010"]
["ELLIOTT, PAUL BASIL","22010513"]
["ELLIS, STEVE","22065115"]
["ELLS, WADE","22016037"]
["ELSWORTH, HAYLEY","22021406"]
["EMINO, KRISTA L","22010982"]
["EMMONS, SHINKA","22053709"]
["ENGRAM, MEGAN","22060798"]
["ENO, SHANE","22002046"]
["ERNST, CANDICE","22063283"]
["ERNST, CEDRIC W.","22053436"]
["ERNST, DAWN D.","22002058"]
["ERNST, EVELYN","22063436"]
["ERNST, JEREMY","22065533"]
["ERNST, KIRSTEN","22065652"]
["ERNST, MARCI","22018951"]
["ERNST, SHEILA","22018017"]
["ERNST, STACEY","22061585"]
["ETHIER, JAMES","22045586"]
["ETHRIDGE, LINDSAY",22063048]
["EVANS PHILLIPS, LYNN","22053310"]
["EVANS, CHARLOTTE","22064460"]
["EVANS, JAMES","22012804"]
["EVANS, MENA (MARY)","22013187"]
["EWING, DAWN","22068587"]
["FABER, GERRIT","22018975"]
["FALL, FAYE","22043425"]
["FANCY, AMANDA","22059211"]
["FANCY, CLARE","22012773"]
["FANCY, JODI","22066734"]
["FANCY, YVONNE","22011763"]
["FANCY, YVONNE","22065283"]
["FANCY-LANDRY, JESSICA","22018775"]
["FAULKENHAM, APRIL","22022377"]
["FAUSTINO, JULIO","22052827"]
["FEENER, CRAIG","22014460"]
["FEENER, DEVAN","22065765"]
["FEENER, JESSICA","22067045"]
["FEENER, ROCKY C.","22012777"]
["FEENER, SHAWN","22068107"]
["FERGUSON, JUSTIN","22068455"]
["FERGUSON, LYNN (PAIGE)","22018952"]
["FERGUSON, MARGARET","22053748"]
["FERGUSON, MICHAEL","22063999"]
["FERRAINA, LORI LEE","22006636"]
["FERRIER, JO ANNE","22007751"]
["FEVENS, KENDRA","22045758"]
["FIANDER, TARA","22064455"]
["FIELDING-CROFT, LINDSEY","22032896"]
["FIELDS, COREY","22067126"]
["FILLMORE, ROBERT","22019026"]
["FINIGAN, WANDA","22055011"]
["FINLAY, PATRICIA","22008299"]
["FISHER, AMANDA","22015181"]
["FISHER, LADONNA","22064457"]
["FISK, REBECCA","22043413"]
["FLEMMING, DAVID","22002386"]
["FLINT, CHARLENE","22043529"]
["FLYNN, DANIELLE","22065335"]
["FOLEY, BLATHNAID","22051140"]
["FOOTE, BRANDON","22067109"]
["FOOTE, CAITLIN","22065285"]
["FOOTE, HEATHER","22002423"]
["FOOTE, KENNETH","22054785"]
["FORBES, MELANIE","22016781"]
["FORD, CHRISTINE","22002465"]
["FORWARD, JOHN","22018721"]
["FOSTER, AMY","22033657"]
["FOSTER, TERRI-LYNN","22015226"]
["FOUBERT, RANDY","22013189"]
["FOUGERE, CHERYL","22022723"]
["FOURDRAINE, CATHERINE","22014777"]
["FOX, CRYSTAL","22043469"]
["FOX, SHANNON B","22014780"]
["FRAELIC, GERALDINE","22043129"]
["FRAELIC, GERRI L","22002548"]
["FRAIL, DENISE","22065437"]
["FRAIL, ELISSA","22061910"]
["FRAIL, JUDITH","22002554"]
["FRALIC, CLARISSA","22068836"]
["FRAMP, CHRIS","22015963"]
["FRAMP, SARA","22019505"]
["FRANCIS, BARRY","22062483"]
["FRANCIS, JILL THERESA (EFT)","22017296"]
["FRANCIS, MICHAEL","22021706"]
["FRANCIS, RODERICK","22054640"]
["FRANCIS, SOPHIE","22067674"]
["FRASER, MADISON","22068737"]
["FRASER, MELLISSA","22043270"]
["FRASER, MONICA","22019360"]
["FRASER, RYAN WAYNE","22010516"]
["FREDERICKS, CRYSTAL","22015023"]
["FREEMAN, CHRYSTAL","22053465"]
["FREEMAN, ELAINE","22021948"]
["FREEMAN, JENNIFER","22060401"]
["FREEMAN, KATHRYN","22018613"]
["FRELLICK, COLLEEN","22043399"]
["FRELLICK, THOMAS","22065738"]
["FRISKNEY, KAREN","22016941"]
["FRY, ELIZABETH F.","22016711"]
["FRYDAY, LAURA","22033115"]
["FUREY, CHAD","22066825"]
["GALLANT, ASHLEY","22065051"]
["GALLIGAN, BARBARA","22002830"]
["GARRETT-JONES, MICHELE","22069981"]
["GARRISON, PATRICIA","22033627"]
["GASKELL-CHANDLER, DARLENE","22010863"]
["GATES, MARY ANN","22071187"]
["GATES, SARAH","22021977"]
["GAUDET, JOLINE","22054676"]
["GAUDET, TAMMY-LYNN","22002926"]
["GECK, LISA","22064781"]
["GEORGE, ADAM","22031394"]
["GEORGE, KAREN","22070142"]
["GERHARDT, GRETCHEN","22007642"]
["GETSON, DONETTE","22071531"]
["GETSON, LAURA G.","22019041"]
["GIBSON, HESTER","22003029"]
["GIBSON, JEFF","22066560"]
["GILBERT, PAUL","22013181"]
["GILBY, SHELLY","22015223"]
["GILLAN, MARTHA","22068548"]
["GILLEN, ANDREW","22021751"]
["GILLIS, BETH","22011765"]
["GLADWIN, ANGELA","22007643"]
["GLADWIN, CHRISTINE","22003185"]
["GLEN, RITA","22016752"]
["GLOVER, VICKI","22016999"]
["GODIN, ADRIAN \"MARIAH\"","22071761"]
["GOEDE, SHERRY","22056622"]
["GOHIER-MOSSMAN, CHLOE","22070489"]
["GOODE, JOSH","22068096"]
["GORDON, ALANNA","22017174"]
["GOSLING, NICOLE","22014781"]
["GOURLEY, ALEXANDER","22046546"]
["GRACE, GAIL","22003372"]
["GRAHAM, GLORIA","22003396"]
["GRAHAM, JOCELYN","22054679"]
["GRAHAM, LOUISE","22016847"]
["GRANDY, JAMES RODNEY","22006634"]
["GRANDY, ROBIN","22054844"]
["GRANT, HOLLY D","22043126"]
["GRANT, JAMES W","22021103"]
["GRANT, NANCY","22014985"]
["GRAVELINE, JENNIFER","22010490"]
["GREEN, JENNIFER","22067862"]
["GREEN, MICHAEL","22070141"]
["GREENWOOD, JENNIFER","22066919"]
["GREGORASH, HOLLY","22017815"]
["GREGORY, KARLA","22003546"]
["GRIFFIN, ANGELA I.","22015908"]
["GRIFFIN, THERESA","22028976"]
["GRIFFITHS, GWENDOLYN","22068055"]
["GRIFFITHS, L. CHARLOTTE","22032399"]
["GRIFFITHS, VIVIANNE","22046574"]
["GRIMM, BILLIE-JEAN","22014185"]
["GUIGUE, GRAYCE","22018051"]
["GUILBAULT, DIANE","22022068"]
["GUILLARD, MEGAN","22022419"]
["GUMMESON, ANN","22010038"]
["HACHE, JENNIFER","22043477"]
["HAGEN, RICHARD","22063993"]
["HAKANSSON, NIKLAS","22063438"]
["HALE, BAILEY","22066578"]
["HALEY, BREANNA","22043645"]
["HALEY, DARREN","22003635"]
["HALEY, JENNIFER","22022497"]
["HALL, JEFFREY","22013183"]
["HALL, KENDRA","22013184"]
["HALLETT, ADAM","22033116"]
["HALLIDAY, MELANIE","22068079"]
["HALVERSON, DONNA","22013017"]
["HAMLIN, KATHY","22017222"]
["HAMM, BELINDA","22013472"]
["HANDLEY, JERYLIN","22021760"]
["HANHAMS, CINDY","22019503"]
["HANHAMS, DOMINIQUE","22066765"]
["HANNA, KATHERINE","22054065"]
["HARDING, ELIZABETH","22003726"]
["HARDING, KAITLYN","22067732"]
["HARLOW, DEANNA","22014759"]
["HARLOW, JUNE","22017221"]
["HARNISH, HEATHER","22003741"]
["HARNISH, JACKIE","22054855"]
["HARNISH, JENNIFER","22053412"]
["HARRINGTON, SHERRILL","22008627"]
["HARRISS, BRENNA","22033117"]
["HARTLAND, JULIE","22055396"]
["HARTLEN, ANGELA","22043193"]
["HARTLEN, ANGELA E","22021117"]
["HARTLEN, SHANNON DAWN","22003813"]
["HARTMAN, KELLY","22061474"]
["HARTT, CORBIN","22033232"]
["HATHAWAY, HENRY (ED)","22032491"]
["HATT, AMANDA","22052788"]
["HATT, DARRELL","22018082"]
["HATT, DEAN","22018179"]
["HATT, LISA","22017000"]
["HATT, SAMANTHA","22067863"]
["HAUGHN, JULIE","22008572"]
["HAUGHN, SARAH","22018902"]
["HAWCO, JEFFERY","22022396"]
["HAYES, CHRIS","22050676"]
["HAZELTON, ROBERT","22003925"]
["HEALEY, KEENAN","22063827"]
["HEBB, BRITTANY","22053584"]
["HEBB, DEBRA S.","22003945"]
["HEBB, DIANE","22053546"]
["HEBB, GARY","22010025"]
["HEBB, JAMES","22010746"]
["HEBB, JOANNE","22065736"]
["HEBB, KATIE","22053442"]
["HEBB, MORGAN","22066032"]
["HEBB, TAYLOR","22068415"]
["HEIM, GORDON","22018354"]
["HEIM, LISA","22014905"]
["HEISLER, JOHN A.","22033167"]
["HEMEON, ALISA","22067574"]
["HENLEY, MARIAH","22059954"]
["HENNENFENT, CHARLES","22054161"]
["HENNIGAR, CALE","22018729"]
["HENRY, SARAH","22002845"]
["HENWOOD, VANESSA","22017511"]
["HERMAN, CARLSON","22006850"]
["HERMAN, GARY","22033237"]
["HERMAN, LACEY","22065332"]
["HERRIDGE, BRUCE","22004088"]
["HICKEY, MAUREEN","22068796"]
["HILCHEY, CAROL","22014784"]
["HILCHEY-MEISNER, LYNN M.","22010002"]
["HILL, DANIEL","22022387"]
["HILL, LORA","22071020"]
["HILLIER, SARAH","22043680"]
["HILTZ, APRIL","22016267"]
["HILTZ, MARGARET A.","22014033"]
["HIMMELMAN, ANDREW","22015059"]
["HIMMELMAN, BREAH","22064547"]
["HIMMELMAN, DONNA","22017110"]
["HIMMELMAN, KELLY","22071129"]
["HIMMELMAN, MARGO","22043658"]
["HIMMELMAN, RHONDA","22004200"]
["HIMMELMAN, SANDRA","22004203"]
["HINCHLIFFE, AETHNE","22053311"]
["HINDLE, PETER","22011767"]
["HINES, ANDREW","22032102"]
["HIPWELL, CAROLE M","22008949"]
["HIRSCH, CHRISTINE","22032094"]
["HIRTLE, CHEYENNE","22066996"]
["HIRTLE, SHERRI L.","22010520"]
["HIRTLE, WAYNE R","22004241"]
["HOGAN, AMANDA","22032068"]
["HOGG, REBEKAH","22053492"]
["HOGUE, ELIZABETH","22069710"]
["HOGUE, SCOTT","22061691"]
["HOGUE, TABATHA","22064377"]
["HOGUE, TANNER","22066510"]
["HOLDRIGHT, CAROLYN","22018176"]
["HOLT, CLAIRE","22017035"]
["HOPEWELL, PHILIP","22048152"]
["HOPKINS, AMY","22018777"]
["HORSMAN, ANDREW (TROY)","22067546"]
["HOUGHTON, PATRICIA","22021348"]
["HOWARD, KIMBERLY","22066198"]
["HOWE, STEPHEN","22064280"]
["HOWLETT, ALISON","22067731"]
["HOWLETT, MICHAEL","22022642"]
["HUBLEY, KIRK","22033673"]
["HUBLEY, REBECCA","22070074"]
["HUDSON, GERALD","22070225"]
["HUEY, BOYD DENNIS","22018720"]
["HUGHES, CAROL","22001876"]
["HULFORD, ELIZABETH A","22001905"]
["HUMPHRIES, KELLY","22009874"]
["HUNT, LOUISE","22070149"]
["HUNT, STEPHANIE","22010521"]
["HUNTER, MARY","22066773"]
["HUPHMAN, ROSEALIE","22053387"]
["HURSHMAN, CHRISTINE","22055938"]
["HUSKILSON, HILARY","22022553"]
["HUSKILSON, PAULA","22061815"]
["HUSKINS, ERIKA","22070629"]
["HUYGEN, ABIGAIL","22068736"]
["HYNES, MELISSA","22064856"]
["HYNES, MICHELE","22031737"]
["HYNICK, NORINE","22016829"]
["HYSON, ANGELA","22061760"]
["IMBEAULT, KEVEN","22033522"]
["INGLES, SHERRY","22022399"]
["INGRAM, ERIN","22066133"]
["INNESS, ANDREA","22017292"]
["ISAAC-JAMIESON, CATHERINE","22008141"]
["JACKSON, CARLA","22022537"]
["JACKSON, GILBERT","22019217"]
["JACKSON, MARTHA","22018995"]
["JACKSON, SHERI","22054789"]
["JACOBS, LEANNE","22044740"]
["JACOBS, LEANNE","22065856"]
["JAMIESON, STEPHEN","22002124"]
["JANES, ANNA","22002129"]
["JANES, BARBARA","22019329"]
["JASKOWIAK, KAJETAN","22021118"]
["JEFFERS, HEATHER","22015958"]
["JEFFREY, NICHOLAS","22015995"]
["JENKINS, BRANDON","22032446"]
["JENSEN, DAVID","22018614"]
["JENSEN, LINDA","22033622"]
["JENSEN, STACEY","22005842"]
["JENSON, SARAH","22002218"]
["JERMEY, JESSICA","22029011"]
["JESSO, GLEN D","22010705"]
["JEWER, SHARON ANNE","22006641"]
["JOCHIMS-KASCHWICH, NADINE","22069859"]
["JOHNSON, ALISA","22015998"]
["JOHNSON, JO-ANN","22002351"]
["JOHNSON, RAYMOND","22010523"]
["JOHNSON, STEPHEN","22015057"]
["JOHNSTON, GRANT","22014787"]
["JOHNSTON, KATRINA","22016850"]
["JOHNSTON, KYRAN","22032468"]
["JOHNSTON, MELANIE","22014786"]
["JOHNSTON, PATRICK","22018773"]
["JOLLIMORE, JANICE","22015228"]
["JOLLIMORE, ROGER","22002392"]
["JOLLIMORE, TARYN","22067466"]
["JOMSKI, OLAF","22032492"]
["JONES, KATHERINE","22002414"]
["JONES, LESLIE","22002419"]
["JONES, VICKY","22054534"]
["JOSEPHSON, BELINDA","22002454"]
["JOSEY, HEIDI","22011459"]
["JOUDREY, ALLISON","22054859"]
["JOUDREY, ERIN","22017027"]
["JOUDREY, JESSICA","22049937"]
["JOUDREY, JUDITH","22002473"]
["JOUDREY, MICHAEL","22022395"]
["JOUDREY, PETER J.","22011535"]
["JOUDREY, SANDRA","22002482"]
["JOUDREY, SHAKIRA","22059656"]
["JOUDREY, TIFFANY","22046361"]
["JOUDRY, MARLENE","22032096"]
["JUDGE, BRADLEY","22050301"]
["JULIAN, SARAH","22068104"]
["KAIZER, EMILY","22033236"]
["KAIZER, MELISSA","22066606"]
["KAIZER-CROFT, EMILY","22033236"]
["KANTOR, NANCY","22062845"]
["KAULBACK, CHRISTOPHER","22043454"]
["KAULBACK, LISA G.","22018961"]
["KAY, ALEX DOUGLAS","22006478"]
["KEAN, LYNNETTE","22002582"]
["KEANS, JANESSA","22044244"]
["KEATING, HELEN","22071425"]
["KEEFE, KERRY","22018972"]
["KEITH, JOANNA","22019358"]
["KELLY, EDWIN","22008955"]
["KELLY, TERRA LEE","22008954"]
["KELSON, JASON","22033118"]
["KEMMING, JANET","22054834"]
["KEMPTON, DEBRA","22033492"]
["KEMPTON, NICHOLAS","22043715"]
["KENDALL, SUSAN","22010165"]
["KENDALL, TREVOR","22021895"]
["KENDRICK, JENNIFER","22021878"]
["KENT, IAN","22017430"]
["KERR, KATHERINE","22063465"]
["KIELY, GILLIAN","22033372"]
["KILFOIL, JENNA","22019252"]
["KILLAM, ARTHUR G.","22002741"]
["KILLAM, NYKOLA","22063440"]
["KINGDON, ANITA J.","22002768"]
["KIRBY, HEATHER","22017838"]
["KIRK, ERIKA","22021732"]
["KIRK, SHAUN","22011769"]
["KLUGE, MARTINA","22043733"]
["KNAPP, BRENDA","22002808"]
["KNAPP, LARRY","22002811"]
["KNECHTEL, JANET","22069857"]
["KNICKLE, BRENDA","22008751"]
["KNICKLE, FAYE","22068774"]
["KNICKLE, JANA","22071616"]
["KNICKLE, NICOLE","22067813"]
["KNICKLE, NORAH","22007644"]
["KNICKLE, SARAH","22021622"]
["KNOCK, DIANA","22015224"]
["KNOCKWOOD, TAMMY","22054010"]
["KOKOCKI, DAVID","22002841"]
["KOLIOTASSIS, KALLIOPE","22021532"]
["KOLOFF, ANNE M.","22018929"]
["KOSIBA, STACEY","22016004"]
["KOUWENBERG-HAUGHN, JULIETTE","22017568"]
["KOWALYK, CINDY","22015232"]
["KRAMER, ALISON","22043585"]
["LABRADOR, KRYSTAL","22059072"]
["LABRECQUE, SHARON","22002812"]
["LACASSE, ELIAKYM","22033524"]
["LACHAPELLE, CATHERINE","22067608"]
["LAFFIN, AMY","22065797"]
["LAFFIN, JORDAN","22067705"]
["LAFFIN-BRIGLEY, NOLA (MELANY)","22066630"]
["LAKE, ANGELA","22008958"]
["LALIBERTE, LEE","22017168"]
["LAMAN, CARLEY","22071507"]
["LAMBE, E ANN","22002887"]
["LANDRY, JENNIFER","22014044"]
["LANDRY, MITCHELL","22002963"]
["LANDRY, NATHALIE","22071530"]
["LANE, BROOKLYN","22071426"]
["LANE, WILLIAM","22066487"]
["LANGFORD, JENNIFER","22017681"]
["LANGILLE, CHARLENE","22003003"]
["LANGILLE, DALE","22031791"]
["LANGILLE, ERICA","22053857"]
["LANGILLE, ERICA","22064580"]
["LANGILLE, SYLVIA","22003046"]
["LANGILLE-HILL, CYNTHIA","22017031"]
["LANGLEY, BEVERLEY R.","22003060"]
["LANGLEY, SHAWN","22022386"]
["LANIGAN, DAVID","22062957"]
["LANIGAN, NICOLE","22016856"]
["LANTZ, BENTON","22014652"]
["LARDER, TWYLA","22003095"]
["LATHROP, RACHEL","22046359"]
["LAVENDER, COLIN","22070763"]
["LAWLOR, KRISTEN","22044321"]
["LAYBOLT, CHRISTINE","22053466"]
["LE LONS, JEAN-CLAUDE","22054535"]
["LEBLANC, ANGELA","22021110"]
["LEBLANC, BRANDI","22068645"]
["LEBLANC, CATHERINE","22050023"]
["LEBLANC, CLAUDINE","22010526"]
["LEBLANC, GREGORY","22063988"]
["LEBLANC, JENNIFER","22043427"]
["LEBLANC, SARAH","22055942"]
["LEBLANC, SUZANNE","22053647"]
["LECAIN, JOHN","22055838"]
["LEE, EUN HA","22065053"]
["LEE, MARK","22065220"]
["LEECO-GRIFFITH, GLENNA","22003338"]
["LEE-RICHARD, BRENDA","22009631"]
["LEFRANK, JOANNE","22003354"]
["LEITOLD, JOHN R","22010088"]
["LEMIRE, JENNIFER","22013231"]
["LENIHAN, BONNIE","22013364"]
["LENIHAN, TINA","22032888"]
["LENIHAN, VALERIE L.","22003400"]
["LEONARD, JACQUELINE","22003405"]
["LEONARD, SCOTT","22010527"]
["LEOPOLD, BETTY M.","22003409"]
["LEOPOLD, DARLENE","22043189"]
["LEOPOLD, DARLENE","22043189"]
["LEOPOLD, LINDA","22014986"]
["LERUE, DONNA","22009213"]
["LESSARD, NATHALIE","22031925"]
["LEUSCHNER, ADAM","22019292"]
["LEUSCHNER, JILL","22018214"]
["LEVANGIE, AMANDA","22066170"]
["LEVESQUE, LAURENCE","22031926"]
["LEVY, ALISON","22014970"]
["LEVY, DIANE M.","22013234"]
["LEVY-PEVERELLE, JILLIAN","22014789"]
["LEWIS, GERARD","22043651"]
["LINEKER, TINA","22017022"]
["LITTLEFAIR, PAIGE","22033119"]
["LIVINGSTONE, DIANE C","22003518"]
["LLOYD, ROBERT","22031739"]
["LOCKHART, RACHEL","22015959"]
["LOGAN, SAVANAH","22065532"]
["LOHNES, DARREN","22029174"]
["LOHNES, DAVID","22017469"]
["LOHNES, GALE","22003567"]
["LOHNES, GWENDOLYN","22016580"]
["LOHNES, HOLLY","22054995"]
["LOHNES, JUDY","22065861"]
["LOHNES, KERRI-ANN","22067816"]
["LOHNES, KEVIN","22021077"]
["LOHNES, MELANIE","22070213"]
["LOHNES, SANDRA J.","22010492"]
["LOHNES-CASHIN, JULIE","22016505"]
["LONGARD, BETH E.P.","22022474"]
["LONGARD, KRISTA","22003600"]
["LONGLEY, MERYN","22054193"]
["LONGLEY, MICHELLE","22003603"]
["LONGMIRE, JAMIE","22066017"]
["LONGUE, DARCI","22059810"]
["LOPEZ GONZALEZ, ANA","22067963"]
["LORDLY, JANE","22017870"]
["LORMAN, CARIANNE","22053437"]
["LORMAN, HALEY","22051341"]
["LORMAN, HALEY","22051341"]
["LOSIER, NOAH","22067522"]
["LOTHIAN, COLLEEN","22068321"]
["LOUGHEAD, ERIC","22003621"]
["LOVETT, ALICIA","22033120"]
["LOWE, KATIE","22064780"]
["LOWE, LINDSAY","22043617"]
["LOWE, RYAN","22058232"]
["LOWE, STEPHANIE","22043238"]
["LYLE-CHAPMAN, BONNY","22064792"]
["LYNDS, NICOLE","22061983"]
["MACASKILL, MARY","22066943"]
["MACDONALD, ABIGALE","22066458"]
["MACDONALD, ADAM","22060399"]
["MACDONALD, EILIDH","22065284"]
["MACDONALD, JOSEPH","22003981"]
["MACDONALD, LISA","22033652"]
["MACDONALD, MORVEN","22019234"]
["MACDONALD, ROSS","22018067"]
["MACDONELL, HELEN","22004179"]
["MACDOUGALL, JESSICA","22065944"]
["MACDOUGALL, SHAUN","22046664"]
["MACDOUGALL, THOMAS C","22008143"]
["MACINNES, ALAN","22070169"]
["MACINNIS, ELIZABETH","22001937"]
["MACINTOSH CANNELLA, NANCY","22018969"]
["MACINTOSH GALLANT, CEILIDH","22071817"]
["MACINTYRE, LINDA M","22001987"]
["MACISAAC, CYNTHIA","22059841"]
["MACKENZIE, DIANE","22054002"]
["MACKENZIE, JAYNE","22062464"]
["MACKENZIE, MARY","22015063"]
["MACKINNON, HEATHER","22011774"]
["MACKINNON, SHERI","22043685"]
["MACLAREN, GAIL","22050843"]
["MACLEAN, CINDY","22054856"]
["MACLEAN, GORDON","22047855"]
["MACLEAN, VINCE","22032671"]
["MACLELLAN, MICHAEL","22043586"]
["MACLEOD BRYDON, ANNE","22009146"]
["MACLEOD, JOHN G","22002497"]
["MACLEOD, KATIE","22033121"]
["MACLEOD, MARK","22002520"]
["MACLEOD, SARAH","22033651"]
["MACLEOD, TRACEY","22016527"]
["MACMILLAN, DIJANA","22057487"]
["MACMILLAN-MACDONALD, DIANNA","22018283"]
["MACNEIL, CHRISTINA","22018900"]
["MACNEILL, DAVID THOMAS","22010886"]
["MACPHEE, CHAD","22016108"]
["MACPHEE, LINDA","22015964"]
["MACPHERSON, TARA","22059942"]
["MACPHERSON, TARA","22059942"]
["MACRAE, RODERICK","22002810"]
["MADER, ANNETTE","22002835"]
["MADER, SHELBY","22054394"]
["MADER, TRISHA","22021127"]
["MAGEE, ANTHONY","22066398"]
["MAGEE, SARA","22018776"]
["MAGUIRE, CHRISTIAN","22048424"]
["MAILMAN, LINDA M.","22002885"]
["MAILMAN, THOMAS","22032062"]
["MAILMAN, TIMMIE","22031799"]
["MALBUT, SARAH","22053467"]
["MALCOLM, KENNETH","22002906"]
["MALCOLM, LESLIE","22002911"]
["MANSFIELD, CARRIE","22057743"]
["MANSFIELD, CHRISTOPHER","22070753"]
["MANSFIELD, JASON","22061840"]
["MANSFIELD, NADINE","22002938"]
["MANSFIELD, TERRI","22056123"]
["MANSFIELD-BELLIVEAU, ANGELA","22053292"]
["MANTHORNE, CRYSTAL","22061914"]
["MANUEL, SYDNEY","22068526"]
["MARION, JACQUES","22068612"]
["MARKOVSKA, IVANA","22065356"]
["MARSHALL, GEOFFREY","22018681"]
["MARSHALL, GRAHAM","22063493"]
["MARTELL, LIAM","22063300"]
["MARTIN, CONSTANCE","22043652"]
["MARTIN, MARY-FRANCES","22063490"]
["MARTIN, SANDRA","22003139"]
["MARTIN-PECK, TINA","22065584"]
["MASON, ALTA M","22017014"]
["MASON, GERALD","22003188"]
["MASON, JAMIE","22013196"]
["MASON, JULIE","22043250"]
["MASON, SHERRY","22059811"]
["MASSEY, CLAYTON","22003218"]
["MASSEY, DAVID E.","22011857"]
["MATARAZZO, KELLY","22067188"]
["MATHESON, LINDA","22065054"]
["MATTE, STEPHANIE","22047045"]
["MATTHEWS, NINA","22017233"]
["MAY, DEBBIE","22052978"]
["MAYO, KIMBERLY","22007645"]
["MCALPINE, ADRIENNE","22066577"]
["MCARDLE, DANIEL","22066936"]
["MCARTHUR, ERIN","22066576"]
["MCAULEY, REID","22013935"]
["MCBAIN, KEVIN","22065737"]
["MCCARRON, JACQUELINE","22069907"]
["MCCARTHY, ALISHIA","22053388"]
["MCCARTHY, AMANDA","22044657"]
["MCCARTHY, GENEVIEVE","22003406"]
["MCCARTHY, SARAH","22071271"]
["MCCARTHY, SAVANNAH","22066918"]
["MCCLAIR, JANE S.","22016501"]
["MCCLARE, MEGAN","22063051"]
["MCCLARY, CHAD","22014050"]
["MCCLEMENT, TINA","22021105"]
["MCCONNELL, ADAM ROSS","22011552"]
["MCCONNELL, ANGELINA","22054825"]
["MCCURDY, LARA","22068611"]
["MCDADE, MARGOT E.","22003455"]
["MCDONALD, DAVID","22046575"]
["MCDOW, AMY","22056124"]
["MCDOW, E. DEAN","22003475"]
["MCDOW, KRISTA","22008969"]
["MCEACHERN, PAUL ANTHONY","22008361"]
["MCFADDEN, DANIEL","22063507"]
["MCGILL, SHERI","22003493"]
["MCGILL, STEVEN","22003495"]
["MCGRATH, JUDY","22003505"]
["MCINTOSH, BERNADETTE","22003527"]
["MCINTYRE, MARY ROSE","22003541"]
["MCISAAC, PAULA","22011775"]
["MCKEAN, DENISE","22017021"]
["MCKEAN, PETER","22052942"]
["MCKENZIE, KAREN","22068413"]
["MCKENZIE, TYRONE","22068105"]
["MCKINNON, ANGELA","22016107"]
["MCLAUGHLIN, MELISSA","22053444"]
["MCMASTER, NATALIE","22067189"]
["MCMENEMY, KATRINA","22067396"]
["MCMILLAN, JULIA","22068320"]
["MCMULLEN, JENNIFER","22032694"]
["MCMULLEN, TREVOR","22043520"]
["MCMULLIN, ALISON","22049022"]
["MCMULLIN, SAMANTHA","22047376"]
["MCNALLY, KATHY","22003651"]
["MEAD, GERALD","22009161"]
["MEISNER, BONNIE","22017872"]
["MEISNER, PAMATASHA","22066489"]
["MEISNER, SHELLEY","22064451"]
["MEISTER, CONNIE","22014792"]
["MEJOLGABE, VALENTINE","22066885"]
["MELLOY, TERRY","22003830"]
["MESSENGER, TROY","22021752"]
["METCALFE, HEIDI","22043579"]
["METCALFE, SHELLEY","22003871"]
["MEULAN, ERIC","22054846"]
["MIAN, SARAH","22053615"]
["MICKLETHWAITE, ASHLEY","22044614"]
["MIEHM, ERICA","22053475"]
["MILBURY, BARBARA","22016916"]
["MILLER, JONATHAN","22059531"]
["MILLER, NICOLA","22046560"]
["MILLER, SANDRA","22003978"]
["MILLETT, AMANDA","22070440"]
["MILLETT, CINDY","22014793"]
["MILLETT, PETER","22019362"]
["MILLMAN, SALLY","22003997"]
["MILLS, STEFAN","22064790"]
["MILNER, SCOTT","22046152"]
["MINNICK, KEVIN","22017006"]
["MITCHELL, CYNTHIA","22008962"]
["MITCHELL, F. SANDRA","22011590"]
["MITCHELL, MICHELE","22011597"]
["MITTON, ELIZABETH","22072259"]
["MITTON, MARAH","22067725"]
["MONAHAN, ERRIN","22014795"]
["MONAHAN, EVAN","22014794"]
["MONROE, COLTON","22054787"]
["MOORE, DARCIE","22019219"]
["MOORE, ELISABETH","22004105"]
["MOORE, KATHERINE R.","22013198"]
["MOORE, SHIRLEY A.","22004124"]
["MOORE, SYLVIA D","22004130"]
["MOORE, WENDY","22032886"]
["MORASH, MATTHEW","22043508"]
["MORASH, PATRICIA","22004149"]
["MORDEEN, JEFFREY","22065491"]
["MOREY, KIM","22054011"]
["MORGAN, BRIDGETT V","22019073"]
["MORGAN, SIOVHON","22067940"]
["MORPHEW, JANE","22068882"]
["MORRIS, R TERRY","22004224"]
["MORRISON, MISTY ROSE","22021619"]
["MORSE, JENNY","22070463"]
["MOSHER, RICHARD","22032425"]
["MOSHER, STEPHANIE","22016862"]
["MOSSMAN, ALLISTER B.","22019154"]
["MOSSMAN, HUGHIE","22018592"]
["MOSSMAN, JASON","22053911"]
["MOSSMAN, ROXANNE","22018616"]
["MOSSMAN, TIMOTHY","22068628"]
["MOULE, JULIA","22014755"]
["MUIR, ALLAN","22014797"]
["MUIR, ERIKA","22014796"]
["MUISE, MONIK","22054670"]
["MULDER, TRACEY","22062803"]
["MULE, TERESA","22053961"]
["MULLEN, AMANDA","22032749"]
["MULLEN, JANE","22004322"]
["MULLEN, JULIANA","22016547"]
["MULLEN, LAURA LEE","22043604"]
["MULLEN, THANE","22060396"]
["MULOCK, MEGAN","22056325"]
["MUNDY, MARY JANE","22068838"]
["MUNRO, KRYSTAL","22019146"]
["MUNROE, KIMBERLY","22053474"]
["MUNRO-GARLAND, PAULA","22010614"]
["MURPHY-LANGFORD, COURTNEY","22015997"]
["MURRAY, BRADLEY","22064626"]
["MURRAY, DEBORAH","22004413"]
["MURRAY, LAURA","22044736"]
["MYERS, DEBORAH","22046145"]
["MYERS, SARAH","22066942"]
["MYLTOFT, RICHARD","22070609"]
["MYRA, COLLEEN","22055207"]
["MYRA, SHON","22032846"]
["NADEAU, SOPHIE","22032777"]
["NARONA, ARIES","22070281"]
["NAUGLER, DAVIN","22054681"]
["NAUGLER, DEVAN","22017455"]
["NAUGLER, JENNIFER","22022726"]
["NAUGLER, JOEL","22022398"]
["NAUGLER, JOETTE","22053119"]
["NAUGLER, PAUL D.","22004516"]
["NAUGLER, PETER","22004519"]
["NAUGLER, ROXANNE","22014387"]
["NAUGLER, WAYNE","22004521"]
["NAUSS DONAT, MEGHAN","22008963"]
["NAUSS, BARBARA","22004526"]
["NAUSS, GREGORY","22058518"]
["NAUSS, KELLI L.","22004528"]
["NAUSS, MISTY","22004532"]
["NEAVES, KYLE","22014221"]
["NELSON, ROBYN","22071428"]
["NEWELL, JENNIFER","22016475"]
["NICHOLS MCCONNELL, MELISSA","22010706"]
["NICKERSON, CAITLIN","22071677"]
["NICKERSON, LORNA A","22004964"]
["NICKERSON, NATALIE","22064858"]
["NICKERSON, PAUL","22017143"]
["NICOLL, AUDREY","22015233"]
["NIFORD, JACOB","22065653"]
["NOBLE, KARL","22019030"]
["NODDING, JEFF","22008964"]
["NODDING, WADE D","22008887"]
["NOEL, CARRIE","22015956"]
["NOEL, MARCUS","22011776"]
["NOFTELL, KATE","22067579"]
["NORMAN, JASON","22032936"]
["NORMAN, TINA","22057080"]
["NORRIS, MICHELLE","22070140"]
["NORTON, DYLAN","22063494"]
["NORWOOD, HEATHER ANN","22018180"]
["NOWE, DEREK","22004688"]
["NOWE, JERYLIN","22054160"]
["NOWE, JOHN","22065331"]
["NOWE, MICHAEL","22015759"]
["NOWE, NICOLE","22045900"]
["NOWE, SHANNON","22050847"]
["NUNN, LAUREN","22022536"]
["O'DONNELL, BENJAMIN","22068837"]
["O'HEARON, MICHAEL","22011777"]
["OICKLE, ALEX","22014385"]
["OICKLE, ANGELA","22019314"]
["OICKLE, BRIAN","22004719"]
["OICKLE, JENNA","22051663"]
["OICKLE, JESSE M","22022008"]
["OICKLE, RACHEL","22065358"]
["O'LAUGHLIN, PATRICK","22016106"]
["O'LEARY-MORRIS, MARILYN","22031395"]
["OLSON, CORINNE","22070275"]
["O'NEILL, AMY","22054814"]
["O'QUINN, DAVID","22014191"]
["ORAZI, CATHERINE","22068348"]
["ORMAN, KRISTA","22015996"]
["OSMOND, SHERRY","22019317"]
["OSMOND, TANYA","22068907"]
["O'TOOLE, BENJAMIN","22066277"]
["OWENS, CYNTHIA","22066513"]
["OZON, JOANNE","22021089"]
["OZON, TRUDY","22053441"]
["PACE, EVELINA","22050409"]
["PAGE, CYNTHIA","22033337"]
["PAGE, ROY MILES","22004804"]
["PAGE, ROY MILES","22063997"]
["PANCZYK, KIMBERLY ANN","22008629"]
["PAQUETTE, CATHERINE","22019521"]
["PARKS, CHARLOTTE","22004867"]
["PARLEE, RICHELLE","22016942"]
["PARNELL, CINDY","22047247"]
["PARSONS, EMILY","22066374"]
["PATTERSON, BRANDON","22054098"]
["PATTERSON, ISABEL","22068347"]
["PATTERSON, NICOLE","22065735"]
["PAUL, LISA","22049302"]
["PAYZANT, ELLIOTT","22004919"]
["PEACH, DOROTHY","22053439"]
["PEARL, DAWN","22017019"]
["PELKEY, AMANDA","22054158"]
["PELKEY, JEFFERY","22043462"]
["PELLEY, ANNETTE","22066891"]
["PENNEY, GREG","22066275"]
["PENNEY, HEIDI","22048151"]
["PERRY, ERIN","22066276"]
["PETTIGREW, SUSAN","22005016"]
["PETTIPAS, GORDON","22066016"]
["PETTIS, DEREK","22067817"]
["PEVERIL, JO-ANN","22022001"]
["PHILLIPS, CHRIS","22005038"]
["PHINNEY, HARRY","22013190"]
["PIERCE, CINDY","22045051"]
["PIERCE, STACI","22043530"]
["PIGNAL-HANSON, LISE","22068735"]
["PINK, DANNY","22072306"]
["PLUMMER, BRENDA","22033424"]
["PLUMMER, NICHOLE","22061554"]
["PLUMMER, SARAH","22054861"]
["POLSON, WALENA","22067262"]
["POMEROY, ELIZABETH \"LOUISE\"","22068976"]
["PORTER, MARY","22010023"]
["PORTER, SHEILA","22032166"]
["POTTIE, CRAIG S.","22005155"]
["POULIOT, ISABELLE","22032779"]
["POWER, BERTON E.","22005178"]
["POWER, CLARE","22050851"]
["POWER, JOHN","22049217"]
["POWER, KAILA","22018704"]
["POWER, KEVIN MARK","22005190"]
["POWER, ROXANNE","22005197"]
["PRENDERGAST, PHILIP","22057651"]
["PRICE MAIDENS, LISA","22068108"]
["PROSSER, AMANDA","22018222"]
["PRUD'HOMME, RAFAELLE","22053050"]
["PUBLICOVER, DONNA C","22010535"]
["PULSIFER, HEATHER","22050305"]
["PURCELL, VERONICA","22029684"]
["PURDY, AMBER","22046974"]
["PYNCH-WORTHYLAKE, NANCY E","22015093"]
["QUIRK, JILL","22068414"]
["RACINE, DIANA J.","22017636"]
["RAFUSE, ISAAC","22018623"]
["RAFUSE, JACQUELINE","22047955"]
["RAFUSE, JENNIFER","22044611"]
["RAFUSE, KAYLA","22021383"]
["RAFUSE, LISA","22044613"]
["RAFUSE, LYNN","22033677"]
["RAFUSE, MARLA G","22005292"]
["RAFUSE, MELANIE","22066764"]
["RAFUSE, NICOLE","22048773"]
["RAFUSE, SUSAN R.","22005302"]
["RAHEY, CATHERINE","22054001"]
["RAMEY, DEBORAH G (EFT)","22005315"]
["RAMEY, JULIE","22010536"]
["RAMEY, WADE","22007414"]
["RAMSAY, ERIN","22014799"]
["RAWDING, DEANNA","22005340"]
["RAWDING, RODNEY A.","22005345"]
["RAWDING, SCOTT","22005347"]
["RAWDING, YVETTE","22005351"]
["READ, WENDY","22053438"]
["REDDEN, ANNETTE","22053445"]
["REDDEN, MATTHEW","22044821"]
["REDMOND, CHRISTINE","22017464"]
["REDMOND, JACKIE","22011589"]
["REES, MITCHEL","22068456"]
["REEVES, EMMA","22064861"]
["REEVES, JENNIFER (EFT)","22022407"]
["REEVES, MARY ELLEN","22005398"]
["REEVES, REBECCA","22063382"]
["REEVES, SUSAN","22066320"]
["REGAN, CATHERINE","22043706"]
["REID, JENNA","22051339"]
["REID, JOBY","22022378"]
["REID, REBECCA","22064914"]
["REINHARDT, MORGEN","22043331"]
["RENOUF, JAMES","22013235"]
["REYES FORNET, ALENA","22062107"]
["RHODENIZER, AMY","22067467"]
["RHODENIZER, ANDREA","22059645"]
["RHODENIZER, BARBARA","22008968"]
["RHODENIZER, BETHANY","22070909"]
["RHODENIZER, BRIANNE","22065531"]
["RHODENIZER, CARMAN","22070610"]
["RHODENIZER, JEAN","22005449"]
["RHODENIZER, JEFFREY","22019045"]
["RHODENIZER, SHERRI","22043306"]
["RHODENIZER, UNA","22005451"]
["RHODENIZER, VICKI D","22005453"]
["RHYNO, GENEVIEVE","22062360"]
["RIBAU, CALIXTO","22056791"]
["RICHARD, MICHELLE","22013580"]
["RICHARDS, MICHELE","22012227"]
["RICHARDSON, DONALD","22064278"]
["RICHARDSON, FRANCES","22071126"]
["RICHARDSON, JONATHAN","22043539"]
["RICKARD, DEBRA","22054272"]
["RINGER, LUCY","22005555"]
["RINGER, MARSHA","22011046"]
["RINGER, MICHAEL","22022500"]
["RISSER, BRIANNA","22056596"]
["RISSER, CATHERINE E","22031734"]
["RISSER, EMMA","22067503"]
["RISSER, STEVEN","22010089"]
["RISSER, TARINA","22054858"]
["RISSER, VIVIAN","22031969"]
["RITCEY, SHERRY R.","22013982"]
["RITCEY-CONRAD, TYLER","22066033"]
["RITCHIE, CATHY L","22005580"]
["RITCHIE, MURRAY","22033674"]
["ROACH, JONATHAN","22018359"]
["ROACH, NICOLE","22054860"]
["ROACH, RONALD","22014067"]
["ROACHE, JESSICA","22055012"]
["ROBAR, CLAUDIA","22008410"]
["ROBAR, JASON","22054531"]
["ROBAR, JEAN","22066397"]
["ROBAR, KAILEY","22065530"]
["ROBART, ALAN","22033653"]
["ROBART, LESLIE","22043211"]
["ROBARTS, ROXANNE F.","22005598"]
["ROBERTS, AMANDA","22070628"]
["ROBERTS, CORBY","22015953"]
["ROBERTS, SARAH","22054680"]
["ROBERTS, TRINA","22017075"]
["ROBINSON, MIRANDA","22017024"]
["ROCK, REBECCA","22005670"]
["RODENHISER, MADISON","22067089"]
["ROGERS, AMANDA","22048401"]
["ROGERS, MARCIA DORIS","22014800"]
["ROMKEY, CHARMAINE","22049346"]
["ROOS, JENNIFER","22067958"]
["ROPER, CHRISTOPHER","22008970"]
["ROSE, KATHERINE","22033122"]
["ROSE, MATTHEW","22064791"]
["ROSE, SHELLEY","22031970"]
["ROSS, KELTON","22060555"]
["ROWLANDS, DONNA","22014746"]
["ROY, ASHLEY","22016795"]
["ROY, BURTON","22005801"]
["ROY, EMILY","22014802"]
["ROY, MARIE-PASCAL","22022420"]
["ROY, SANDRA","22043281"]
["ROY, TYLER","22067230"]
["ROY, WILLIAM","22011168"]
["RUSSELL, AARON","22016943"]
["RUSSELL, BRENDA J.","22005841"]
["RUSSELL, CHRISTINE","22019277"]
["RUSSELL, JOCELYN","22070954"]
["RUSSELL, LIAM","22068069"]
["RUSSELL-BOND, JACQUELINE","22032380"]
["RYAN, ADRIENNE","22015220"]
["RYAN, ELIZABETH","22053908"]
["RYKUNYK-MACKAY, DEVIN","22063237"]
["SAINSBURY, KRISTA","22071128"]
["SAMSON, KALYN","22047012"]
["SAMSON, MARY LOU","22016105"]
["SANFORD LYNCH, MICHELLE","22063508"]
["SANGSTER, MICHAEL","22006026"]
["SARTY, ALEX","22033166"]
["SARTY, DWAYNE","22015760"]
["SARTY, JESSE","22043118"]
["SARTY, KATRINA","22053193"]
["SARTY, ROBERT","22016932"]
["SARTY, SAMANTHA","22054351"]
["SARTY, WILLIAM","22029034"]
["SAULNIER, ASHLEY","22057201"]
["SAULNIER, BARBARA","22048224"]
["SAULNIER, TERRY LOUIS","22004349"]
["SAULNIER, WILLIAM","22063509"]
["SAULNIER, ZACHERY","22053418"]
["SAULNIER, ZACHERY","22065060"]
["SAULNIER-TIDD, ANNE M","22011972"]
["SAUNDERS, JANA","22069767"]
["SAUNDERS, JANNETTE","22058709"]
["SAVORY, ADAM","22065968"]
["SAVORY, KAYLEA","22068915"]
["SAWLER, LEE","22032402"]
["SAWLER, MEGAN","22043636"]
["SAWLER, NATALIE","22033314"]
["SAWLER, WENDY","22007415"]
["SCHNARE-RUSSELL, CHARLOTTE","22043351"]
["SCHRODER, THERESA","22050677"]
["SCOBEY-SUTHERLAND, JOANNE","22061624"]
["SCOTT, ANGELA","22009165"]
["SCOTT, GREG","22016864"]
["SCOTT, LORI","22029516"]
["SCOTT, SUSAN","22048261"]
["SEABOYER, MARJORIE","22070075"]
["SEABOYER, PAIGE","22066375"]
["SEAGER, LENORA","22016280"]
["SEAMONE, ALLY","22054393"]
["SEAMONE, ERIN","22067957"]
["SEAMONE, KAREN L.","22011786"]
["SEAMONE, MELODY","22048242"]
["SEARS, KAITLYN","22070597"]
["SEBEK, KATHY","22054857"]
["SEIDEL, ASTRID","22068067"]
["SELIG, ANDREW","22022473"]
["SELIG, CHERYL","22017947"]
["SELIG, DENISE LYN","22043174"]
["SELIG, JOHN M","22018634"]
["SELIG, PAMELA J.","22052239"]
["SELIG, SARAH","22015993"]
["SELIG, WADE E.","22004509"]
["SEYMOUR, DENISE","22065370"]
["SEYMOUR, FLOYD","22065334"]
["SEYMOUR, SHERRY","22067307"]
["SHAND, JONATHAN","22033124"]
["SHANKS, GINA","22033125"]
["SHANO, DOUGLAS","22067927"]
["SHATFORD, ROSS","22021762"]
["SHAW, CATHERINE","22010540"]
["SHEAVES, SKYLAR","22054831"]
["SHEEHY, FRANCES","22054678"]
["SHEEHY, MEGHAN","22054476"]
["SHEFFIELD, ALISON","22043681"]
["SHEPPARD, CHARLENE","22054081"]
["SHERMAN, ALLAN","22072626"]
["SILMARIE, BRENTON","22072622"]
["SILMARIE, JULIE","22043702"]
["SILVER, AVICE A.","22016830"]
["SILVER, PETER R.","22004634"]
["SILVER, TERESE","22014998"]
["SILVER, TINA","22043701"]
["SILVERMAN, ANNA","22070384"]
["SIMMS, GRACE","22067706"]
["SIMMS, LYNN","22013192"]
["SIMMS, VERNON","22022727"]
["SIMPSON, JUANITA","22004648"]
["SIMPSON, SARAH","22070490"]
["SIMS, CEILI","22054677"]
["SINCLAIR, CRAIG","22033163"]
["SINCLAIR, DONALD \"PATRICK\"","22069931"]
["SINCLAIR, GAIL","22017298"]
["SINGER, NATHAN","22043501"]
["SKINNER, JUSTINE","22021373"]
["SKINNER, NANCY","22043136"]
["SKOREYKO, LYDIA","22011787"]
["SLADE, JESSIE","22043261"]
["SLAUENWHITE, JANET","22004699"]
["SLAUENWHITE, MICHELLE","22021407"]
["SMART, NATHAN","22016471"]
["SMART, REBECCA","22014801"]
["SMITH, AMY","22067310"]
["SMITH, ANN","22004712"]
["SMITH, BRIAN","22032110"]
["SMITH, CHERA","22048241"]
["SMITH, CICELY","22068095"]
["SMITH, CLAYTON","22031721"]
["SMITH, ELLENOR","22033567"]
["SMITH, FRANCINE","22016866"]
["SMITH, HAYLEIGH","22068077"]
["SMITH, JAMES","22018633"]
["SMITH, KAITLYN","22018018"]
["SMITH, KELLI-JEANE","22007291"]
["SMITH, MAKAYLA","22050195"]
["SMITH, MELANIE","22063934"]
["SMITH, PATRICIA S","22018536"]
["SMITH, TINA","22060887"]
["SMYE, MADELYN","22067724"]
["SMYTH, LORI","22068255"]
["SNAIR, KAREN","22051241"]
["SNAIR, LESLIE C.","22004847"]
["SNAIR, LYNNANNE","22013936"]
["SNARBY, KRISTOPHER","22013195"]
["SNEDDON, RACHEL","22064786"]
["SNOW, BRIAN","22021119"]
["SNOW, JENNIFER","22021126"]
["SNYDER, CURTIS B.","22004857"]
["SNYDER, JAMES","22006630"]
["SNYDER, KAREN","22066671"]
["SNYDER, KRYSTAL R.","22004862"]
["SNYDER, TANYA","22019499"]
["SOARES, HEIDI","22064384"]
["SOARES, STACEY","22001492"]
["SODE, NATASHA","22017429"]
["SOLLOWS, HEATHER","22007585"]
["SORA, MELANIE","22064459"]
["SOUJAH, SOUHAIL","22063506"]
["SPENCE, STUART","22066724"]
["SPENCER, BARRY D.","22004896"]
["SPENCER, DIANE E.","22005078"]
["SPENCER, TRACI","22019029"]
["SPENCER-WEARE, JENNIFER","22013194"]
["SPERRY, MIKE","22070088"]
["SPERRY, RYAN","22017814"]
["SPINDLER, SANDY","22043662"]
["SPRAGUE, CANDACE","22017404"]
["SQUAREY, SHANNON","22068936"]
["SQUIRES, IAN","22033126"]
["STARRATT, AMBER","22070333"]
["STEAD, JENNIFER","22019364"]
["STEELE, TERESA","22022499"]
["STEEVES, DENNIS E.","22004948"]
["STEEVES, JANET","22069982"]
["STEPHENS, DANIELLE","22057492"]
["STEPHENSON, SUSIE","22057499"]
["STEVENS, CHARMAINE C.","22022732"]
["STEVENS, DANIELLE","22057492"]
["STEVENS, DEANNA","22043280"]
["STEVENS, SHANNON","22067457"]
["STEWART, ANDREW","22018329"]
["STEWART, ANGELA","22010291"]
["STEWART, CATHERINE L","22006639"]
["STEWART, CERI ANN","22008972"]
["STEWART, CHELSEA","22045623"]
["STEWART, KATELYN","22065860"]
["STEWART, MARINA","22018328"]
["STEWART, MICHAEL","22005003"]
["STEWART, PAIGE","22068527"]
["STEWART, RICHARD","22018570"]
["STEWART, TERRY","22010090"]
["STORM, MAI-LING","22013296"]
["STORM, MEYNDERT","22018523"]
["STRAUBEL, PETER F.J.","22005048"]
["STRINGER, KATRINA","22019251"]
["STRONG, CAMERON","22018020"]
["STRONG, EMILY","22017903"]
["STROWBRIDGE, SIDNEY","22007416"]
["STROWBRIDGE, TANIA","22005059"]
["STRUM, MELINDA","22007293"]
["STRUTT, ZOE","22054815"]
["STUART, AMANDA","22014803"]
["STUBBS, CHRISTINA","22043149"]
["STYMIEST-TATCHELL, SHANNON","22021623"]
["SULIS, SEAN","22068549"]
["SULIS, SHARAYAH","22071427"]
["SULLIVAN, AMY","22005084"]
["SULLIVAN, CAITLIN","22068528"]
["SULLIVAN, VICKI","22053440"]
["SURETTE, GARREN","22022643"]
["SUTHERLAND, ELIZABETH","22005168"]
["SUTHERLAND, GEORGE","22029180"]
["SUTHERLAND, GREGORY","22008974"]
["SUTHERLAND, KIMBERLEY","22070956"]
["SWAINE, JILLIAN","22066514"]
["SWANSBURG, CATHERINE","22069972"]
["SWEETMAN, MIKE","22032103"]
["SWIM, ANNE","22014269"]
["SYKES, VALERIE L","22021707"]
["SYLVESTER, JEFFREY","22015692"]
["SYMES, LISA","22013171"]
["SYMES, TODD","22011789"]
["TANNER, BENNY G.","22012775"]
["TANNER, BRYNLIE","22046327"]
["TANNER, COLE","22071484"]
["TANNER, EVELYN","22054821"]
["TANNER, LARRY","22015106"]
["TANNER, LISA","22009928"]
["TANNER, SALLY","22014916"]
["TANNER, WENDY","22005219"]
["TARIQ, IRAJ","22069016"]
["TATTRIE, WADE","22017462"]
["TAYLOR, JOHN","22009493"]
["TAYLOR, LESLEY","22043458"]
["TAYLOR, MARK","22047008"]
["TAYLOR, MATT","22067820"]
["TAYLOR, SANDY","22043312"]
["TAYLOR, SARAH","22067557"]
["TAYLOR, TANYA","22043319"]
["TAYLOR, WENDY","22066692"]
["TAYS, PHILIP","22043336"]
["TAYS, PHILIP C","22018577"]
["THEODORE, GEORGETTE","22055392"]
["THERIAU, ERNEST","22013983"]
["THERIAULT, PEGGY","22017510"]
["THERRIEN-SAMSON, LEA","22022421"]
["THOMAS, EDWARD (JAY)","22068068"]
["THOMAS, ETHAN","22018452"]
["THOMPSON, KIM","22017939"]
["THORBURN, STACY","22006492"]
["THORBURNE, CRYSTAL","22008522"]
["THORNHILL, NANCY","22018948"]
["THORPE, COREY","22067673"]
["TIBBO, JONATHAN","22066771"]
["TIBERT, KIMBERLEY","22003951"]
["TIDD, BARBARA","22017902"]
["TINNEY, MARY-LIN","22011824"]
["TOBIN, STEPHANIE","22055949"]
["TREMBLETT, PEGGY MARIE","22010040"]
["TRETHEWAY, AMANDA","22052867"]
["TRETHEWEY, PAMELA","22014804"]
["TRUDEAU, CYNTHIA","22011525"]
["TRUONG, HIEN","22067378"]
["TULK, MARGO","22043472"]
["TURGEON, MORGAN","22033523"]
["TURNER, JUSTIN","22067814"]
["TURNER, L ALLAN","22005518"]
["TURNER, SAMANTHA","22054159"]
["TURNER-WAMBOLDT, DAWN","22005527"]
["TUTTY, JOHN JEFFERY","22010543"]
["TUTTY, SARAH ANN","22010507"]
["TZAGARAKIS-FOURNIER, NANCY","22032088"]
["UHLMAN, DAWN","22005543"]
["UHLMAN, EVAN","22047954"]
["UHLMAN, JENNIFER","22015910"]
["UHLMAN, MYA","22014805"]
["UHLMAN, RONALD R","22005547"]
["UMLAH, SARAH","22019354"]
["UNSWORTH, KELLY","22005553"]
["UPADHYAY, SAMIRKUMAR","22051342"]
["UPADHYAY, SHABNAM","22053420"]
["UPTON, ROBERT","22022367"]
["VALLEE, GABRIEL","22047043"]
["VAN DAELE, HAYLEY","22053640"]
["VAN DONINCK, BERNARD W","22005590"]
["VAN DYK, KIMBERLEY","22005592"]
["VAN GURP, HENDRIKA","22053483"]
["VAN NIE, MARIA","22068492"]
["VANBUSKIRK, COLIN","22066460"]
["VANDEMOORTELE, DAVID A","22011791"]
["VANDERTOORN, JILLIAN LYNN","22005610"]
["VANDERTOORN, MICHAEL","22005612"]
["VANDERWAL, JEFFREY","22011792"]
["VAN'T HOF, JOHN MARINUS","22007761"]
["VARNER, NANCY","22005622"]
["VAUGHAN, PAMELA","22065114"]
["VEINOT, BRIANA","22068146"]
["VEINOT, DIANE","22045462"]
["VEINOT, ELSA","22014397"]
["VEINOT, JILL","22017286"]
["VEINOT, KATHY E","22064915"]
["VEINOT, KYLIE","22070168"]
["VEINOT, MEGAN","22067502"]
["VEINOT-GATES, JOYCE","22005645"]
["VEINOTTE FROWD, TANYA","22011793"]
["VEINOTTE, BONNIE","22005650"]
["VEINOTTE, CHASIDY","22066131"]
["VEINOTTE, CHERYL","22004776"]
["VEINOTTE, CRISTA","22058707"]
["VEINOTTE, HOLLY-LYNN","22043556"]
["VENO, CINDY","22068106"]
["VERGE, GLORIA","22067812"]
["VERGE, SELENA","22019367"]
["VERGE-BOLLIVAR, MICHELLE","22008142"]
["VINCENT, SHANNON","22046214"]
["VINIEGRA CRUZ, MARIA","22053548"]
["VOEGE, LAKYN","22054854"]
["VOURI, OWEN","22067934"]
["WADDELL, BEVERLY","22012503"]
["WADDELL, JONATHAN","22053818"]
["WADE, ADAM","22022400"]
["WADE, KORY","22017295"]
["WADE, MARTINE","22019361"]
["WAGNER, BRENDA","22013169"]
["WAGNER, J LEANDER","22005679"]
["WAGNER, LYNN","22063182"]
["WAGNER, MARY","22015519"]
["WAGNER, PETA","22005685"]
["WAGNER, TRACY","22066937"]
["WAGNER-WHYNOT, CORINNA L.","22009346"]
["WALKER, PENNY","22019047"]
["WALKER, RHONDA","22063991"]
["WALSH, CHANTELLE","22065113"]
["WALSH, SHELLEY","22011780"]
["WALTERS, GORDON","22015776"]
["WALTERS, RHONDA E","22021980"]
["WALTERS, SHEILA","22015955"]
["WAMBOLDT, AMY","22053896"]
["WAMBOLDT, CATHERINE","22046208"]
["WAMBOLDT, CHARLOTTE","22066191"]
["WAMBOLDT, LAWRENCE","22046211"]
["WAMBOLDT, NICOLE","22011771"]
["WAMBOLDT, SHEILA","22014807"]
["WAMBOLDT, TIA","22067956"]
["WAMBOLDT, WENDY","22054639"]
["WAMBOLT, BONNIE D.","22053468"]
["WAMBOLT, STEPHANIE","22016712"]
["WARD, MICHAEL","22005761"]
["WARDELL, PATRICK","22018772"]
["WARR, AMY","22019175"]
["WARREN, REBECCA","22065111"]
["WATERMAN, CHRISTOPHER","22014809"]
["WEADEN, DEVON","22064458"]
["WEAGLE, KRISTA","22045368"]
["WEAGLE, ROSE MARIE","22065219"]
["WEAGLE, TONYA","22053443"]
["WEARE, COLLEEN","22066772"]
["WEARE, JEFFREY","22017807"]
["WEAVER, KARSON","22068584"]
["WEBB, MARTY DARREN","22017034"]
["WEBB, TERESA","22019218"]
["WEBBER, DIANE L","22013238"]
["WEIR, WENDELL","22022646"]
["WELCH, ADRIENNE","22011955"]
["WELLS, ASHLEY","22044614"]
["WELSFORD, BARBARA","22010078"]
["WELSFORD, LINDSAY","22017904"]
["WENTZELL, ALEX","22019031"]
["WENTZELL, ANN","22008975"]
["WENTZELL, AUDREY CHRIS","22005859"]
["WENTZELL, BRENDA","22069868"]
["WENTZELL, CASSIDY","22069858"]
["WENTZELL, CHERYL","22014845"]
["WENTZELL, DARREN K","22018412"]
["WENTZELL, JULIE","22010544"]
["WENTZELL, MACKENZIE","22070439"]
["WENTZELL, MARGO","22011794"]
["WENTZELL, PATRICIA","22005876"]
["WENTZELL, PAUL","22015767"]
["WENTZELL, SELENA D.","22014068"]
["WENTZELL, SHARON L.","22008976"]
["WENTZELL, SHEILA","22043298"]
["WENTZELL, TAMMY","22070579"]
["WEST, DONNA","22066199"]
["WESTHAVER, BOBBI-JO","22022397"]
["WESTHAVER, SUZETTE","22068493"]
["WESTHAVER, WALTER","22005892"]
["WHALEN, KELLY","22011554"]
["WHEATLEY, KATELYN","22018320"]
["WHITE, ALLAN","22032921"]
["WHITE, DAVID","22016001"]
["WHITE, PATRICIA","22067397"]
["WHITE, TAMARA","22044808"]
["WHITEHOUSE, LAURA","22021621"]
["WHYNOT, AMY- DAWN","22018327"]
["WHYNOT, APRIL F.","22053469"]
["WHYNOT, DARRYL","22016889"]
["WHYNOT, DEVIN","22019027"]
["WHYNOT, DONALD","22005983"]
["WHYNOT, DONALD M","22021529"]
["WHYNOT, DONNA L","22005985"]
["WHYNOT, GARY","22033343"]
["WHYNOT, GLORIA R","22013239"]
["WHYNOT, GREG","22005989"]
["WHYNOT, JANE ANN","22054668"]
["WHYNOT, JOSH","22017287"]
["WHYNOT, LESLEY","22005993"]
["WHYNOT, MARK","22069908"]
["WHYNOT, NICHOLAS","22019032"]
["WHYNOT, NICOLE","22067263"]
["WHYNOT, RAYMOND","22016570"]
["WHYNOT, ROBERT JAMES","22005998"]
["WHYNOT, RODNEY","22013907"]
["WHYNOT, SANDRA","22065357"]
["WHYNOT, SHELLY","22013718"]
["WICKINGTON, MARK","22049216"]
["WILBAND, DIANE","22014811"]
["WILE, BRANDON","22067427"]
["WILE, GAIL","22033165"]
["WILE, KEVIN T.","22006008"]
["WILE, LISA","22010292"]
["WILE, LORRAINE","22015768"]
["WILE, TIFFANY","22053415"]
["WILE, TRACY","22055280"]
["WILKINS, LINDSAY","22022432"]
["WILKINS, RUTH","22033127"]
["WILKINS, RUTH W.","22021603"]
["WILLIAMS, ALISON","22013174"]
["WILLIAMS, DONNA","22067308"]
["WILLIAMS, EMMA","22053448"]
["WILLIAMS, LINDA","22019270"]
["WILLIAMS, ROSANNE","22016929"]
["WILLIAMSON, CHARLES","22006048"]
["WILLIAMSON, TINA","22004344"]
["WILLMAN, BRIAN","22056951"]
["WILLMAN, MELISSA","22015961"]
["WILLOW WILKINS, LINDSAY","22022432"]
["WILSON, ANNE","22006062"]
["WILSON, CATHY","22016277"]
["WILSON, JESSICA","22071127"]
["WILSON, LAURA","22033128"]
["WILSON, MICHAEL","22015957"]
["WILSON, SARA","22046329"]
["WILSON, STEPHANIE","22008628"]
["WIMMER, GLYNDA","22006071"]
["WINFIELD, MICHAEL","22032634"]
["WINSOR, ZOE","22019365"]
["WINTERS, ELAINE","22015769"]
["WISSLER, CHRISTINA","22014748"]
["WOLFE JR, ARNOLD J","22018727"]
["WOLFE, HEATHER","22054164"]
["WOLFE, MORGAN","22045777"]
["WOLFE, VICKIE","22031693"]
["WOLSTENHOLME, JONATHAN","22022498"]
["WOOD, LAUREN","22021885"]
["WOODFORD-COLLINS, ELIZABETH","22018405"]
["WOODLEY, PAUL","22054533"]
["WOODSWORTH, KATHY","22058310"]
["WOODSWORTH, STEPHANIE","22004434"]
["WOODWORTH, CARMEN","22004437"]
["WOODWORTH, LESLIE-ANNE","22016928"]
["WOODWORTH, SHELLEY ANNE","22006628"]
["WORTHYLAKE, MICHAEL","22016002"]
["WRICE, MAUREEN","22071678"]
["WYATT, KAREN","22016181"]
["YEATON, KAITLIN","22063439"]
["YOUNG, DARLENE C.","22014461"]
["YOUNG, MEGAN","22056792"]
["YOUNG, TYLER","22049851"]
["ZINCK, ALLISON","22061279"]
["ZINCK, ANNETTE","22013205"]
["ZINCK, GARY R","22004558"]
["ZINCK, MANDI","22071021"]
["ZINCK, MARLENE","22008977"]
["ZINCK, NANCY","22021765"]
["ZINCK, ROBBIE-LYNN","22032090"]
["ZINCK, SHAWNA LYNN","22017028"]
["ZINCK, STEPHANIE","22065160"]
["ZINCK, TONY","22010559"]
["ZINCK, WANDA","22015031"]
["ZINN, SHELLY","22053389"]
["ZINN, TRAVIS","22009930"]
["ZWICKER, BRENDA","22017401"]
["ZWICKER, BRITTANY","22068529"]
["ZWICKER, CATHERINE","22013965"]
["ZWICKER, COREY","22032889"]
["ZWICKER, JOEL","22033467"]
["ZWICKER, LAURIE","22043436"]
["ZWICKER, MICHAEL A.","22004581"]
["ZWICKER, SARAH","22057588"]
["ZWICKER-MCCALLION, AMY","22004570"]

{"sheet":"Account Info","index":5,"n_rows":358,"n_cols":15,"rows_kept":358,"cut":false,"hidden":true,"merged":[]}
["Fund Ctr","Fund","Functional Area","GL","Department","Division","Commitment Item Group","Commitment Item Text","Fund Centre Text","Funds Center Group","Fund Text","FA Text","dProposed Annual Budget 17-18","Other","Owner"]
[68100061,1000,2100000000,"631100","School Services","School Services Admi","TRAVEL","Travel - In Province","Sch Svs Admin","NSSB/061","General Fund","PGM-TCHRS>DEF",18000,"Jeff, Cheryl, Denise, Tracey, Sharon, Jim, Paige","Jeff DeWolfe"]
[68100061,1019,2100010000,"631100","School Services","School Services Admi","TRAVEL","Travel - In Province","Sch Svs Admin","NSSB/061","RCH","PGM-TCHRS>RCH",4300,"Lamar's travel","Lamar Eason"]
[68100061,1000,2100000000,"784800","School Services","School Services Admi","SUPPLIES/MATERIALS","Telecomm - Cellular","Sch Svs Admin","NSSB/061","General Fund","PGM-TCHRS>DEF",1600,"Jeff, Cheryl, Denise, Tracey, Sharon, Jim, Paige","Jeff DeWolfe"]
[68100061,1019,2100010000,"784800","School Services","School Services Admi","SUPPLIES/MATERIALS","Telecomm - Cellular","Sch Svs Admin","NSSB/061","RCH","PGM-TCHRS>RCH",400,"Lamar's cell","Lamar Eason"]
[68100061,1000,2100000000,"786400","School Services","School Services Admi","SUPPLIES/MATERIALS","Supplies & Materials","Sch Svs Admin","NSSB/061","General Fund","PGM-TCHRS>DEF",13000,"Jeff, Cheryl, Denise, Tracey, Sharon, Jim, Paige","Jeff DeWolfe"]
[68100061,1019,2100010000,"786400","School Services","School Services Admi","SUPPLIES/MATERIALS","Supplies & Materials","Sch Svs Admin","NSSB/061","RCH","PGM-TCHRS>RCH",18000," ","Lamar Eason"]
[68100061,1000,2100000000,"786850","School Services","School Services Admi","PROFESSIONAL_DEV","Dues - Membership","Sch Svs Admin","NSSB/061","General Fund","PGM-TCHRS>DEF",1400,"Dues for Jeff - ANSEA and ASCD","Jeff DeWolfe"]
[68100061,1000,2100000000,"814100","School Services","School Services Admi","PROFESSIONAL_DEV","Conference - In Prov","Sch Svs Admin","NSSB/061","General Fund","PGM-TCHRS>DEF",13624,"Artisan Teacher Conference ","Jeff DeWolfe"]
[68100140,1139,6000000000,"631100","Other Non-PSP Prgrms","Pre-Primary Prg","TRAVEL","Travel - In Province","PrePrim-Regional","(blank)","Pre-Primary Prog","OTH PRG>DEF",3000,null,"Denise Dodge-Baker"]
[68100140,1139,6000000000,"784800","Other Non-PSP Prgrms","Pre-Primary Prg","SUPPLIES/MATERIALS","Telecomm - Cellular","PrePrim-Regional","(blank)","Pre-Primary Prog","OTH PRG>DEF",400,null,"Denise Dodge-Baker"]
[68100140,1139,6000000000,"786400","Other Non-PSP Prgrms","Pre-Primary Prg","SUPPLIES/MATERIALS","Supplies & Materials","PrePrim-Regional","(blank)","Pre-Primary Prog","OTH PRG>DEF",3261,null,"Denise Dodge-Baker"]
[68100201,1000,1050000004,"786400","Board Governance","Board Governance","SUPPLIES/MATERIALS","Supplies & Materials","Board Other","NSSB/201","General Fund","BRD MBR>GOV EXP",7000,null,"Scott Milner"]
[68100201,1000,1150000000,"786900","Board Governance","Board Governance","NSSBA","Dues - NSSBA","Board Other","NSSB/201","General Fund","NSSBA/OTH>DEF",47749,null,"Scott Milner"]
[68100311,1000,1700000000,"631100","Office of the Superi","Communications","TRAVEL","Travel - In Province","Communications","NSSB/311","General Fund","COMM >DEF",2500,null,"Scott Milner"]
[68100311,1000,1700000000,"784800","Office of the Superi","Communications","SUPPLIES/MATERIALS","Telecomm - Cellular","Communications","NSSB/311","General Fund","COMM >DEF",300,null,"Scott Milner"]
[68100311,1000,1700000000,"786400","Office of the Superi","Communications","SUPPLIES/MATERIALS","Supplies & Materials","Communications","NSSB/311","General Fund","COMM >DEF",2500,null,"Scott Milner"]
[68100311,1000,1700000000,"786800","Office of the Superi","Communications","SUPPLIES/MATERIALS","Adver.and Promotion","Communications","NSSB/311","General Fund","COMM >DEF",3000,null,"Scott Milner"]
[68100514,6052,1650000000,"814400","Human Resource Servi","Human Resources","PROFESSIONAL_DEV","InService -Non-Teach","HR AdminOthrBenefits","NSSB/514","PD Fund - NSGEU","HR SVS>DEF",3000,null,"Brian Bonia"]
[68100514,6050,1650000000,"814600","Human Resource Servi","Human Resources","PROFESSIONAL_DEV","PD-Non-Teachers Cont","HR AdminOthrBenefits","NSSB/514","PD Fund - CUPE","HR SVS>DEF",5000,null,"Brian Bonia"]
[68100514,6051,1650000000,"814600","Human Resource Servi","Human Resources","PROFESSIONAL_DEV","PD-Non-Teachers Cont","HR AdminOthrBenefits","NSSB/514","PD Fund - SEIU","HR SVS>DEF",15000,null,"Brian Bonia"]
[68100514,6052,1650000000,"814600","Human Resource Servi","Human Resources","PROFESSIONAL_DEV","PD-Non-Teachers Cont","HR AdminOthrBenefits","NSSB/514","PD Fund - NSGEU","HR SVS>DEF",5000,null,"Brian Bonia"]
[68100514,6053,1650000000,"814650","Human Resource Servi","Human Resources","PROFESSIONAL_DEV","PD-Non Teach Non-Con","HR AdminOthrBenefits","NSSB/514","PD Fund - Non-Union","HR SVS>DEF",10000,null,"Brian Bonia"]
[68100514,6054,1650000000,"814650","Human Resource Servi","Human Resources","PROFESSIONAL_DEV","PD-Non Teach Non-Con","HR AdminOthrBenefits","NSSB/514","PD Allocation Fund","HR SVS>DEF",5000,null,"Brian Bonia"]
[68100520,1032,2100580000,"721250","School Services","School Services PD","REPAIRS/MAINT","Other Contract.Servi","Article 60 Sabb","NSSB/520","Art60","PGM-TCHRS>SABBATICAL",9828," ","Denise Dodge-Baker"]
[68100520,1032,2100580000,"814100","School Services","School Services PD","PROFESSIONAL_DEV","Conference - In Prov","Article 60 Sabb","NSSB/520","Art60","PGM-TCHRS>SABBATICAL",100000," ","Denise Dodge-Baker"]
[68100520,1032,2100580000,"814150","School Services","School Services PD","PROFESSIONAL_DEV","Conference - Out of","Article 60 Sabb","NSSB/520","Art60","PGM-TCHRS>SABBATICAL",100000," ","Denise Dodge-Baker"]
[68100520,1032,2100580000,"814200","School Services","School Services PD","PROFESSIONAL_DEV","Conference - Contrac","Article 60 Sabb","NSSB/520","Art60","PGM-TCHRS>SABBATICAL",84851," ","Denise Dodge-Baker"]
[68100520,1032,2100580000,"814300","School Services","School Services PD","PROFESSIONAL_DEV","InService - Teacher","Article 60 Sabb","NSSB/520","Art60","PGM-TCHRS>SABBATICAL",5000," ","Denise Dodge-Baker"]
[68100520,1032,2100580000,"814500","School Services","School Services PD","PROFESSIONAL_DEV","PDev - Teachers Cont","Article 60 Sabb","NSSB/520","Art60","PGM-TCHRS>SABBATICAL",130000," ","Denise Dodge-Baker"]
[68100610,1000,2050050000,"631100","School Services","School Costs","TRAVEL","Travel - In Province","Gen Acct-RSB","Gen Acct","General Fund","SCH MGT>P-12",16000,"School Principals, Vice Principals and Administrative Assistants - Use 3 digit location code in middle of fund centre","Jeff DeWolfe"]
[68100610,1000,3000000000,"631100","School Services","School Costs","TRAVEL","Travel - In Province","Gen Acct-RSB","Gen Acct","General Fund","SCH SVS>DEF",3000,"TA's, Library, etc. - use 3 digit location code in middle of fund centre","Jeff DeWolfe"]
[68100610,1000,3050050000,"631100","School Services","School Costs","TRAVEL","Travel - In Province","Gen Acct-RSB","Gen Acct","General Fund","INST P-12>P-12",8000,"School Teachers - Use 3 digit location code in middle of fund centre","Jeff DeWolfe"]
[68100610,1000,3350000001,"631100","School Services","School Costs","TRAVEL","Travel - In Province","Gen Acct-RSB","Gen Acct","General Fund","PRGMGT-SS>OTH EXP",15000,"Instructional Coaches, CRL Coach and EAL Circuit Teacher","Jeff DeWolfe"]
[68100610,1013,3100050000,"631100","School Services","School Costs","TRAVEL","Travel - In Province","Gen Acct-RSB","Gen Acct","Guid","GUID SVS>P-12",1000," ","Darren Haley"]
[68100610,1000,3000000000,"652400","School Services","School Costs","CONTRACTED_SERVICES","Computer Services","Gen Acct-RSB","Gen Acct","General Fund","SCH SVS>DEF",9200," ","Jeff DeWolfe"]
[68100610,1000,3000000000,"652900","School Services","School Costs","CONTRACTED_SERVICES","Other Prof.Services","Gen Acct-RSB","Gen Acct","General Fund","SCH SVS>DEF",15000," ","Jeff DeWolfe"]
[68100610,1000,2050050000,"711475","School Services","School Costs","CONTRACTED_SERVICES","Equipment - Lease","Gen Acct-RSB","Gen Acct","General Fund","SCH MGT>P-12",170000," ","Jeff DeWolfe"]
[68100610,1000,2050050000,"784100","School Services","School Costs","SUPPLIES/MATERIALS","Telecommunications","Gen Acct-RSB","Gen Acct","General Fund","SCH MGT>P-12",41400," ","Jeff DeWolfe"]
[68100610,1000,3050050000,"786400","School Services","School Costs","SUPPLIES/MATERIALS","Supplies & Materials","Gen Acct-RSB","Gen Acct","General Fund","INST P-12>P-12",29,"","Jeff DeWolfe"]
[68100610,1013,3100050000,"786400","School Services","School Costs","SUPPLIES/MATERIALS","Supplies & Materials","Gen Acct-RSB","Gen Acct","Guid","GUID SVS>P-12",1000," ","Darren Haley"]
[68100610,1000,2050050000,"786460","School Services","School Costs","SUPPLIES/MATERIALS","Software Supplies","Gen Acct-RSB","Gen Acct","General Fund","SCH MGT>P-12",14700," ","Jeff DeWolfe"]
[68100610,1000,2050050000,"786850","School Services","School Costs","PROFESSIONAL_DEV","Dues - Membership","Gen Acct-RSB","Gen Acct","General Fund","SCH MGT>P-12",7000,"for NSELC Dues (schools)","Jeff DeWolfe"]
[68100610,1000,3000000000,"787000","School Services","School Costs","SUPPLIES/MATERIALS","Tuition Fees Paid","Gen Acct-RSB","Gen Acct","General Fund","SCH SVS>DEF",5100,"","Jeff DeWolfe"]
[68100610,1000,3000000000,"797500","School Services","School Costs","INSURANCE","Insurance - Liabilit","Gen Acct-RSB","Gen Acct","General Fund","SCH SVS>DEF",11000,"Liability Insurance","Jeff DeWolfe"]
[68100610,1000,2050050000,"814350","School Services","School Costs","PROFESSIONAL_DEV","InService - Teach No","Gen Acct-RSB","Gen Acct","General Fund","SCH MGT>P-12",11000,"Principal and Vice Principal meetings","Jeff DeWolfe"]
[68100610,1000,3350000000,"814400","School Services","School Costs","PROFESSIONAL_DEV","InService -Non-Teach","Gen Acct-RSB","Gen Acct","General Fund","PRGMGT-SS>DEF",5000,"TA In-services","Darren Haley"]
[68100610,6027,2050000000,"814450","School Services","School Costs","PROFESSIONAL_DEV","In Ser.-Non-Teach.No","Gen Acct-RSB","Gen Acct","SAC","SCH MGT>DEF",10000," ","Jeff DeWolfe"]
[68100650,2030,6000280000,"631100","School Services","International Studen","TRAVEL","Travel - In Province","Int Stud-Admin","NSSB/650","InterStudents","OTH PRG>ISP",30000,null,"Mitch Landry"]
[68100650,2030,6000280000,"631400","School Services","International Studen","TRAVEL","Extra-Curricular Tra","Int Stud-Admin","NSSB/650","InterStudents","OTH PRG>ISP",6000,null,"Mitch Landry"]
[68100650,2030,6000280000,"652700","School Services","International Studen","CONTRACTED_SERVICES","Home Stay Fees","Int Stud-Admin","NSSB/650","InterStudents","OTH PRG>ISP",570400,null,"Mitch Landry"]
[68100650,2030,6000280000,"652900","School Services","International Studen","CONTRACTED_SERVICES","Other Prof.Services","Int Stud-Admin","NSSB/650","InterStudents","OTH PRG>ISP",150000,null,"Mitch Landry"]
[68100650,2030,6000280000,"784800","School Services","International Studen","SUPPLIES/MATERIALS","Telecomm - Cellular","Int Stud-Admin","NSSB/650","InterStudents","OTH PRG>ISP",3000,null,"Mitch Landry"]
[68100650,2030,6000280000,"786400","School Services","International Studen","SUPPLIES/MATERIALS","Supplies & Materials","Int Stud-Admin","NSSB/650","InterStudents","OTH PRG>ISP",80000,null,"Mitch Landry"]
[68100650,2030,6000280000,"814150","School Services","International Studen","PROFESSIONAL_DEV","Conference - Out of","Int Stud-Admin","NSSB/650","InterStudents","OTH PRG>ISP",2000,null,"Mitch Landry"]
[68100670,1000,3350000000,"631100","School Services","Special Education","TRAVEL","Travel - In Province","Prog Stud Supp","NSSB/670","General Fund","PRGMGT-SS>DEF",6200,"Travel for Darren, Connie and Diana","Darren Haley"]
[68100670,1067,3350000000,"631100","School Services","Special Education","TRAVEL","Travel - In Province","Prog Stud Supp","NSSB/670","AssitTech","PRGMGT-SS>DEF",4000,"travel for Barb Welsford and Anita Kingdon","Darren Haley"]
[68100670,1102,3350000000,"631100","School Services","Special Education","TRAVEL","Travel - In Province","Prog Stud Supp","NSSB/670","Autism","PRGMGT-SS>DEF",8000,"travel for Catherine Rahey, Kelli Nauss","Darren Haley"]
[68100670,1000,3350000000,"711400","School Services","Special Education","REPAIRS/MAINT","Equipment","Prog Stud Supp","NSSB/670","General Fund","PRGMGT-SS>DEF",12000,"Special equipment","Darren Haley"]
[68100670,1067,3350000000,"711400","School Services","Special Education","SUPPLIES/MATERIALS","Equipment","Prog Stud Supp","NSSB/670","AssitTech","PRGMGT-SS>DEF",5000," ","Darren Haley"]
[68100670,1067,3350000000,"784100","School Services","Special Education","SUPPLIES/MATERIALS","Telecommunications","Prog Stud Supp","NSSB/670","AssitTech","PRGMGT-SS>DEF",400," ","Darren Haley"]
[68100670,1102,3350000000,"784100","School Services","Special Education","SUPPLIES/MATERIALS","Telecommunications","Prog Stud Supp","NSSB/670","Autism","PRGMGT-SS>DEF",150," ","Darren Haley"]
[68100670,1000,3350000000,"784800","School Services","Special Education","SUPPLIES/MATERIALS","Telecomm - Cellular","Prog Stud Supp","NSSB/670","General Fund","PRGMGT-SS>DEF",800,"Cell phone for Darren and Connie","Darren Haley"]
[68100670,1102,3350000000,"784800","School Services","Special Education","SUPPLIES/MATERIALS","Telecomm - Cellular","Prog Stud Supp","NSSB/670","Autism","PRGMGT-SS>DEF",1200," ","Darren Haley"]
[68100670,1000,3350000000,"786400","School Services","Special Education","SUPPLIES/MATERIALS","Supplies & Materials","Prog Stud Supp","NSSB/670","General Fund","PRGMGT-SS>DEF",4000,"Darren and Connie","Darren Haley"]
[68100670,1067,3350000000,"786400","School Services","Special Education","SUPPLIES/MATERIALS","Supplies & Materials","Prog Stud Supp","NSSB/670","AssitTech","PRGMGT-SS>DEF",3000," ","Darren Haley"]
[68100670,1102,3350000000,"786400","School Services","Special Education","SUPPLIES/MATERIALS","Supplies & Materials","Prog Stud Supp","NSSB/670","Autism","PRGMGT-SS>DEF",2500," ","Darren Haley"]
[68100670,1000,3350000000,"786850","School Services","Special Education","SUPPLIES/MATERIALS","Dues - Membership","Prog Stud Supp","NSSB/670","General Fund","PRGMGT-SS>DEF",300,"Dues for Connie - Crisis prevention and ASCD","Darren Haley"]
[68100680,1000,3450390000,"631100","School Services","School Costs","TRAVEL","Travel - In Province","SpeechPaths/Psys/SLD","NSSB/061","General Fund","P&C SUP-SS>SLD",17000,"SLD's","Darren Haley"]
[68100680,1000,3450760000,"631100","School Services","School Costs","TRAVEL","Travel - In Province","SpeechPaths/Psys/SLD","NSSB/061","General Fund","P&C SUP-SS>SPRT SVS",18100,"SLP's and Pysch","Darren Haley"]
[68100680,1000,3450390000,"784800","School Services","School Costs","SUPPLIES/MATERIALS","Telecomm - Cellular","SpeechPaths/Psys/SLD","NSSB/061","General Fund","P&C SUP-SS>SLD",1000,"SLD's","Darren Haley"]
[68100680,1000,3450760000,"784800","School Services","School Costs","SUPPLIES/MATERIALS","Telecomm - Cellular","SpeechPaths/Psys/SLD","NSSB/061","General Fund","P&C SUP-SS>SPRT SVS",4400,"SLP's and Pysch","Darren Haley"]
[68100680,1000,3450390000,"786400","School Services","School Costs","SUPPLIES/MATERIALS","Supplies & Materials","SpeechPaths/Psys/SLD","NSSB/061","General Fund","P&C SUP-SS>SLD",10000,"SLD's","Darren Haley"]
[68100680,1000,3450760000,"786400","School Services","School Costs","SUPPLIES/MATERIALS","Supplies & Materials","SpeechPaths/Psys/SLD","NSSB/061","General Fund","P&C SUP-SS>SPRT SVS",10000,"SLP's and Pysch","Darren Haley"]
[68100680,1000,3450760000,"786850","School Services","School Costs","SUPPLIES/MATERIALS","Dues - Membership","SpeechPaths/Psys/SLD","NSSB/061","General Fund","P&C SUP-SS>SPRT SVS",7000," ","Darren Haley"]
[68100741,1000,1750000000,"631100","Operational Services","Technology Services","TRAVEL","Travel - In Province","Tech Svs Regional","NSSB/741","General Fund","IT REGL>DEF",9700,"Alex ","Jim Dexter"]
[68100741,1000,1750000000,"784100","Operational Services","Technology Services","SUPPLIES/MATERIALS","Telecommunications","Tech Svs Regional","NSSB/741","General Fund","IT REGL>DEF",135000,"Alex ","Jim Dexter"]
[68100741,1000,1750000000,"784800","Operational Services","Technology Services","SUPPLIES/MATERIALS","Telecomm - Cellular","Tech Svs Regional","NSSB/741","General Fund","IT REGL>DEF",2600,"Alex ","Jim Dexter"]
[68100741,1000,1750000000,"786400","Operational Services","Technology Services","SUPPLIES/MATERIALS","Supplies & Materials","Tech Svs Regional","NSSB/741","General Fund","IT REGL>DEF",600,"Alex ","Jim Dexter"]
[68100741,1000,1750000000,"786450","Operational Services","Technology Services","SUPPLIES/MATERIALS","Computer Supplies","Tech Svs Regional","NSSB/741","General Fund","IT REGL>DEF",26000,"Alex ","Jim Dexter"]
[68100741,1000,1750000000,"786460","Operational Services","Technology Services","SUPPLIES/MATERIALS","Software Supplies","Tech Svs Regional","NSSB/741","General Fund","IT REGL>DEF",26000,"Alex ","Jim Dexter"]
[68100741,1000,1750000000,"786700","Operational Services","Technology Services","SUPPLIES/MATERIALS","Cour/Freight/Deliv","Tech Svs Regional","NSSB/741","General Fund","IT REGL>DEF",250,"Alex ","Jim Dexter"]
[68100742,1022,2200530000,"711300","Operational Services","Technology Services","REPAIRS/MAINT","Computer Hard./Maint","IEI","NSSB/742","IEI","IT SITE>IEI",43264,null,"Jim Dexter"]
[68100742,1022,2200530000,"786460","Operational Services","Technology Services","SUPPLIES/MATERIALS","Software Supplies","IEI","NSSB/742","IEI","IT SITE>IEI",5000,null,"Jim Dexter"]
[68100850,1009,3250470000,"631100","School Services","Program Grants","TRAVEL","Travel - In Province","Co-op-Global","Co-op","Co-Op Profile","PRG SUP>COOP ED",2000,null,"Beth Woodford-Collins"]
[68100850,1009,3250470000,"786400","School Services","Program Grants","SUPPLIES/MATERIALS","Supplies & Materials","Co-op-Global","Co-op","Co-Op Profile","PRG SUP>COOP ED",9280,null,"Beth Woodford-Collins"]
[68100851,1024,2100840000,"652900","School Services","Program Grants","CONTRACTED_SERVICES","Other Prof.Services","SSP-Global","CSI","SSP","PGM-TCHRS>SSP",10000," ","Denise Dodge-Baker"]
[68100851,1024,2100840000,"786400","School Services","Program Grants","SUPPLIES/MATERIALS","Supplies & Materials","SSP-Global","CSI","SSP","PGM-TCHRS>SSP",26815," ","Denise Dodge-Baker"]
[68100854,1018,2100860000,"631100","School Services","Program Grants","TRAVEL","Travel - In Province","O2 Program-Global","O2 Program","O2","PGM-TCHRS>O2",8000,null,"Beth Woodford-Collins"]
[68100854,1018,2100860000,"631400","School Services","Program Grants","TRAVEL","Extra-Curricular Tra","O2 Program-Global","O2 Program","O2","PGM-TCHRS>O2",8000,null,"Beth Woodford-Collins"]
[68100854,1018,2100860000,"784800","School Services","Program Grants","SUPPLIES/MATERIALS","Telecomm - Cellular","O2 Program-Global","O2 Program","O2","PGM-TCHRS>O2",400,null,"Beth Woodford-Collins"]
[68100854,1018,2100860000,"786400","School Services","Program Grants","SUPPLIES/MATERIALS","Supplies & Materials","O2 Program-Global","O2 Program","O2","PGM-TCHRS>O2",1500,null,"Beth Woodford-Collins"]
[68100855,1030,2100870000,"786400","School Services","Program Grants","SUPPLIES/MATERIALS","Supplies & Materials","Work It-RSB","Work It","Workit","PGM-TCHRS>WORK IT",22189,null,"Beth Woodford-Collins"]
[68100856,2004,2100930000,"631100","School Services","Program Grants","TRAVEL","Travel - In Province","Hlth Prom Sch-Global","Hlth Prom Sch","HPS","PGM-TCHRS>HTH PRO",2600,"Health Promoter","Jeff DeWolfe"]
[68100856,2004,2100930000,"652900","School Services","Program Grants","CONTRACTED_SERVICES","Other Prof.Services","Hlth Prom Sch-Global","Hlth Prom Sch","HPS","PGM-TCHRS>HTH PRO",60000,"Health Promoter","Jeff DeWolfe"]
[68100856,2004,2100930000,"784800","School Services","Program Grants","TRAVEL","Telecomm - Cellular","Hlth Prom Sch-Global","Hlth Prom Sch","HPS","PGM-TCHRS>HTH PRO",400,"Health Promoter","Jeff DeWolfe"]
[68100856,2004,2100930000,"786400","School Services","Program Grants","SUPPLIES/MATERIALS","Supplies & Materials","Hlth Prom Sch-Global","Hlth Prom Sch","HPS","PGM-TCHRS>HTH PRO",29970,"Health Promoter","Jeff DeWolfe"]
[68100857,2005,6000360000,"786400","School Services","Program Grants","SUPPLIES/MATERIALS","Supplies & Materials","Brkfst Prg-Global","Brkfst Prg","BrkfstProg","OTH PRG>BRKFST PRG",15000,"Health Promoter","Jeff DeWolfe"]
[68100861,1010,3250050000,"786400","School Services","Program Grants","SUPPLIES/MATERIALS","Supplies & Materials","SkilledTradesCen","Skilled Trades","SkTr","PRG SUP>P-12",67468,null,"Beth Woodford-Collins"]
[68100864,1074,3400050007,"631100","School Services","Program Grants","TRAVEL","Travel - In Province","SchoolsPlus","NSSB/864","SchoolsPlus","INST - SS>SPLUS SOW",26000," ","Darren Haley"]
[68100864,1074,3400050007,"784800","School Services","Program Grants","SUPPLIES/MATERIALS","Telecomm - Cellular","SchoolsPlus","NSSB/864","SchoolsPlus","INST - SS>SPLUS SOW",1200," ","Darren Haley"]
[68100864,1074,3400050007,"786400","School Services","Program Grants","SUPPLIES/MATERIALS","Supplies & Materials","SchoolsPlus","NSSB/864","SchoolsPlus","INST - SS>SPLUS SOW",268846," ","Darren Haley"]
[68122610,1000,3050050000,"786400","School Services","School Costs","SUPPLIES/MATERIALS","Supplies & Materials","Gen Acct-BA","Gen Acct","General Fund","INST P-12>P-12",16923,"","School Supplies"]
[68122703,1000,4150000000,"785700","Operational Services","Property Services","UTILITIES","Wood Biomass Fuel","Utilities-BA","Utilities","General Fund","MAINT>DEF",16500,null,"Andy Selig and Brian Judge"]
[68142610,1000,3050050000,"786400","School Services","School Costs","SUPPLIES/MATERIALS","Supplies & Materials","Gen Acct-HA","Gen Acct","General Fund","INST P-12>P-12",17418,"","School Supplies"]
[68151610,1000,3050050000,"786400","School Services","School Costs","SUPPLIES/MATERIALS","Supplies & Materials","Gen Acct-NES","Gen Acct","General Fund","INST P-12>P-12",6538,"","School Supplies"]
[68161610,1000,3050050000,"786400","School Services","School Costs","SUPPLIES/MATERIALS","Supplies & Materials","Gen Acct-PES","Gen Acct","General Fund","INST P-12>P-12",4065,"","School Supplies"]
[68181610,1000,3050050000,"786400","School Services","School Costs","SUPPLIES/MATERIALS","Supplies & Materials","Gen Acct-BTE","Gen Acct","General Fund","INST P-12>P-12",2087,"","School Supplies"]
[68181701,1000,4100000000,"721200","Operational Services","Property Services","REPAIRS/MAINT","Cleaning Services","Custodial-BTE","Custodial","General Fund","CUST >DEF",3700,null,"Andy Selig and Brian Judge"]
[68191610,1000,3050050000,"786400","School Services","School Costs","SUPPLIES/MATERIALS","Supplies & Materials","Gen Acct-BCS","Gen Acct","General Fund","INST P-12>P-12",14363,"","School Supplies"]
[68191705,6030,4150690000,"711400","Operational Services","Property Services","REPAIRS/MAINT","Equipment","P3 FFE-BCS","Maint","P3-FF&E","MAINT>P3",12148,null,"Andy Selig and Brian Judge"]
[68191743,1033,2200690000,"711300","Operational Services","Technology Services","REPAIRS/MAINT","Computer Hard./Maint","P3 IT Supp-BCS","NSSB/743","P3Tech","IT SITE>P3",35459,null,"Jim Dexter"]
[68201610,1000,3050050000,"786400","School Services","School Costs","SUPPLIES/MATERIALS","Supplies & Materials","Gen Acct-BES","Gen Acct","General Fund","INST P-12>P-12",23061,"","School Supplies"]
[68203610,1000,3050050000,"786400","School Services","School Costs","SUPPLIES/MATERIALS","Supplies & Materials","Gen Acct-BJSHS","Gen Acct","General Fund","INST P-12>P-12",11035,"","School Supplies"]
[68203854,1018,2100860000,"786400","School Services","Program Grants","SUPPLIES/MATERIALS","Supplies & Materials","O2 Program-BJSHS","O2 Program","O2","PGM-TCHRS>O2",2325,null,"Beth Woodford-Collins"]
[68203862,1042,3050270000,"786400","School Services","Program Grants","SUPPLIES/MATERIALS","Supplies & Materials","Adv Placement-BJSHS","Advance Placement","AdvPlac","INST P-12>ADV PLACE",2850," ","Paige Ferguson"]
[68211610,1000,3050050000,"786400","School Services","School Costs","SUPPLIES/MATERIALS","Supplies & Materials","Gen Acct-PRES","Gen Acct","General Fund","INST P-12>P-12",4065,"","School Supplies"]
[68221610,1000,3050050000,"786400","School Services","School Costs","SUPPLIES/MATERIALS","Supplies & Materials","Gen Acct-NGES","Gen Acct","General Fund","INST P-12>P-12",7673,"","School Supplies"]
[68221631,1136,3050050000,"786400","School Services","School Costs","SUPPLIES/MATERIALS","Supplies & Materials","Priority School-NGES","(blank)","Priority Schools","INST P-12>P-12",50000," ","Jeff DeWolfe"]
[68223610,1000,3050050000,"786400","School Services","School Costs","SUPPLIES/MATERIALS","Supplies & Materials","Gen Acct-NGRHS","Gen Acct","General Fund","INST P-12>P-12",11832,"","School Supplies"]
[68223854,1018,2100860000,"784800","School Services","Program Grants","SUPPLIES/MATERIALS","Telecomm - Cellular","O2 Program-NGRHS","O2 Program","O2","PGM-TCHRS>O2",200,null,"Beth Woodford-Collins"]
[68223854,1018,2100860000,"786400","School Services","Program Grants","SUPPLIES/MATERIALS","Supplies & Materials","O2 Program-NGRHS","O2 Program","O2","PGM-TCHRS>O2",7750,null,"Beth Woodford-Collins"]
[68223862,1042,3050270000,"786400","School Services","Program Grants","SUPPLIES/MATERIALS","Supplies & Materials","Adv Placement-NGRHS","Advance Placement","AdvPlac","INST P-12>ADV PLACE",2850," ","Paige Ferguson"]
[68241140,1139,6000000000,"786400","Other Non-PSP Prgrms","Pre-Primary Prg","SUPPLIES/MATERIALS","Supplies & Materials","PrePrim-WNES","(blank)","Pre-Primary Prog","OTH PRG>DEF",46875,null,"Denise Dodge-Baker"]
[68241610,1000,3050050000,"786400","School Services","School Costs","SUPPLIES/MATERIALS","Supplies & Materials","Gen Acct-WNES","Gen Acct","General Fund","INST P-12>P-12",5869,"","School Supplies"]
[68253610,1000,3050050000,"786400","School Services","School Costs","SUPPLIES/MATERIALS","Supplies & Materials","Gen Acct-PVEC","Gen Acct","General Fund","INST P-12>P-12",26331,"","School Supplies"]
[68253852,1007,2100260000,"786400","School Services","Program Grants","SUPPLIES/MATERIALS","Supplies & Materials","Int Bacc-PVEC","Int Bacc","IB","PGM-TCHRS>IB",176873," ","Paige Ferguson"]
[68253854,1018,2100860000,"786400","School Services","Program Grants","SUPPLIES/MATERIALS","Supplies & Materials","O2 Program-PVEC","O2 Program","O2","PGM-TCHRS>O2",13175,null,"Beth Woodford-Collins"]
[68256610,1000,3050050000,"786400","School Services","School Costs","SUPPLIES/MATERIALS","Supplies & Materials","Gen Acct-MBAS","Gen Acct","General Fund","INST P-12>P-12",2669,"","School Supplies"]
[68281610,1000,3050050000,"786400","School Services","School Costs","SUPPLIES/MATERIALS","Supplies & Materials","Gen Acct-ACES","Gen Acct","General Fund","INST P-12>P-12",5636,"","School Supplies"]
[68281743,1033,2200690000,"711300","Operational Services","Technology Services","REPAIRS/MAINT","Computer Hard./Maint","P3 IT Supp-ACES","NSSB/743","P3Tech","IT SITE>P3",3926,null,"Jim Dexter"]
[68303610,1000,3050050000,"786400","School Services","School Costs","SUPPLIES/MATERIALS","Supplies & Materials","Gen Acct-NRCS","Gen Acct","General Fund","INST P-12>P-12",4647,"","School Supplies"]
[68311140,1139,6000000000,"786400","Other Non-PSP Prgrms","Pre-Primary Prg","SUPPLIES/MATERIALS","Supplies & Materials","PrePrim-CDES","(blank)","Pre-Primary Prog","OTH PRG>DEF",46614,null,"Denise Dodge-Baker"]
[68311610,1000,3050050000,"786400","School Services","School Costs","SUPPLIES/MATERIALS","Supplies & Materials","Gen Acct-CDES","Gen Acct","General Fund","INST P-12>P-12",10203,"","School Supplies"]
[68311631,1136,3050050000,"786400","School Services","School Costs","SUPPLIES/MATERIALS","Supplies & Materials","Priority School-CDES","(blank)","Priority Schools","INST P-12>P-12",17271," ","Jeff DeWolfe"]
[68312610,1000,3050050000,"786400","School Services","School Costs","SUPPLIES/MATERIALS","Supplies & Materials","Gen Acct-CAMS","Gen Acct","General Fund","INST P-12>P-12",8051,"","School Supplies"]
[68313610,1000,3050050000,"786400","School Services","School Costs","SUPPLIES/MATERIALS","Supplies & Materials","Gen Acct-FHCS","Gen Acct","General Fund","INST P-12>P-12",12240,"","School Supplies"]
[68313854,1018,2100860000,"784800","School Services","Program Grants","SUPPLIES/MATERIALS","Telecomm - Cellular","O2 Program-FHCS","O2 Program","O2","PGM-TCHRS>O2",200,null,"Beth Woodford-Collins"]
[68313854,1018,2100860000,"786400","School Services","Program Grants","SUPPLIES/MATERIALS","Supplies & Materials","O2 Program-FHCS","O2 Program","O2","PGM-TCHRS>O2",7750,null,"Beth Woodford-Collins"]
[68313862,1042,3050270000,"786400","School Services","Program Grants","SUPPLIES/MATERIALS","Supplies & Materials","Adv Placement-FHCS","Advance Placement","AdvPlac","INST P-12>ADV PLACE",2850," ","Paige Ferguson"]
[68315610,1000,3050050000,"786400","School Services","School Costs","SUPPLIES/MATERIALS","Supplies & Materials","Gen Acct-DJCWA","Gen Acct","General Fund","INST P-12>P-12",13665,"","School Supplies"]
[68316610,1000,3050050000,"786400","School Services","School Costs","SUPPLIES/MATERIALS","Supplies & Materials","Gen Acct-LRHS","Gen Acct","General Fund","INST P-12>P-12",11745,"","School Supplies"]
[68316854,1018,2100860000,"786400","School Services","Program Grants","SUPPLIES/MATERIALS","Supplies & Materials","O2 Program-LRHS","O2 Program","O2","PGM-TCHRS>O2",7750,null,"Beth Woodford-Collins"]
[68318610,1000,3050050000,"786400","School Services","School Costs","SUPPLIES/MATERIALS","Supplies & Materials","Gen Acct-NQCS","Gen Acct","General Fund","INST P-12>P-12",8691,"","School Supplies"]
[68318854,1018,2100860000,"786400","School Services","Program Grants","SUPPLIES/MATERIALS","Supplies & Materials","O2 Program-NQCS","O2 Program","O2","PGM-TCHRS>O2",7750,null,"Beth Woodford-Collins"]
[68319610,1000,3050050000,"786400","School Services","School Costs","SUPPLIES/MATERIALS","Supplies & Materials","Gen Acct-GES","Gen Acct","General Fund","INST P-12>P-12",2902,"","School Supplies"]
[68320610,1000,3050050000,"786400","School Services","School Costs","SUPPLIES/MATERIALS","Supplies & Materials","Gen Acct-SQMS","Gen Acct","General Fund","INST P-12>P-12",8429,"","School Supplies"]
[68410200,1000,1100000000,"784800","Board Governance","Board Governance","SUPPLIES/MATERIALS","Telecomm - Cellular","Board Secretary","NSSB/200","General Fund","BRD SEC>DEF",500,null,"Scott Milner"]
[68410310,1000,1550000000,"631100","Office of the Superi","Regional Management","TRAVEL","Travel - In Province","Regional Bd Mgmt","NSSB/310","General Fund","MGT SVS>DEF",100,null,"Scott Milner"]
[68410310,1000,1550000000,"651800","Office of the Superi","Regional Management","CONTRACTED_SERVICES","Legal Services","Regional Bd Mgmt","NSSB/310","General Fund","MGT SVS>DEF",110000,null,"Scott Milner"]
[68410310,1000,1550000000,"652900","Office of the Superi","Regional Management","CONTRACTED_SERVICES","Other Prof.Services","Regional Bd Mgmt","NSSB/310","General Fund","MGT SVS>DEF",1300,null,"Scott Milner"]
[68410310,1000,1550000000,"711475","Office of the Superi","Regional Management","CONTRACTED_SERVICES","Equipment - Lease","Regional Bd Mgmt","NSSB/310","General Fund","MGT SVS>DEF",16200,null,"Scott Milner"]
[68410310,1000,1550000000,"784100","Office of the Superi","Regional Management","SUPPLIES/MATERIALS","Telecommunications","Regional Bd Mgmt","NSSB/310","General Fund","MGT SVS>DEF",7500,null,"Scott Milner"]
[68410310,1000,1550000000,"786400","Office of the Superi","Regional Management","SUPPLIES/MATERIALS","Supplies & Materials","Regional Bd Mgmt","NSSB/310","General Fund","MGT SVS>DEF",14500,null,"Scott Milner"]
[68410310,1000,1550000000,"786650","Office of the Superi","Regional Management","SUPPLIES/MATERIALS","Postage","Regional Bd Mgmt","NSSB/310","General Fund","MGT SVS>DEF",2000,null,"Scott Milner"]
[68410310,1000,1550000000,"786700","Office of the Superi","Regional Management","SUPPLIES/MATERIALS","Cour/Freight/Deliv","Regional Bd Mgmt","NSSB/310","General Fund","MGT SVS>DEF",8000,null,"Scott Milner"]
[68410310,1000,1550000000,"786800","Office of the Superi","Regional Management","SUPPLIES/MATERIALS","Adver.and Promotion","Regional Bd Mgmt","NSSB/310","General Fund","MGT SVS>DEF",400,null,"Scott Milner"]
[68410310,1000,1550000000,"794110","Office of the Superi","Regional Management","SUPPLIES/MATERIALS","Foreign Exch.Differe","Regional Bd Mgmt","NSSB/310","General Fund","MGT SVS>DEF",-1000,null,"Scott Milner"]
[68410310,1000,1550000000,"794130","Office of the Superi","Regional Management","SUPPLIES/MATERIALS","Cash Discounts Taken","Regional Bd Mgmt","NSSB/310","General Fund","MGT SVS>DEF",-2700,null,"Scott Milner"]
[68410410,1000,1600000000,"631100","Financial Services","Financial Services","TRAVEL","Travel - In Province","Finance Admin","NSSB/410","General Fund","FIN SVS>DEF",9800,null,"Wade Tattrie"]
[68410410,1000,1600000000,"652100","Financial Services","Financial Services","CONTRACTED_SERVICES","Audit Services","Finance Admin","NSSB/410","General Fund","FIN SVS>DEF",32000,null,"Wade Tattrie"]
[68410410,1000,1600000000,"652900","Financial Services","Financial Services","CONTRACTED_SERVICES","Other Prof.Services","Finance Admin","NSSB/410","General Fund","FIN SVS>DEF",2000,null,"Wade Tattrie"]
[68410410,1000,1600000000,"711450","Financial Services","Financial Services","REPAIRS/MAINT","Equipment - Repair","Finance Admin","NSSB/410","General Fund","FIN SVS>DEF",2500,null,"Wade Tattrie"]
[68410410,1000,1600000000,"784800","Financial Services","Financial Services","SUPPLIES/MATERIALS","Telecomm - Cellular","Finance Admin","NSSB/410","General Fund","FIN SVS>DEF",1000,null,"Wade Tattrie"]
[68410410,1000,1600000000,"786400","Financial Services","Financial Services","SUPPLIES/MATERIALS","Supplies & Materials","Finance Admin","NSSB/410","General Fund","FIN SVS>DEF",1500,null,"Wade Tattrie"]
[68410410,1000,1600000000,"786850","Financial Services","Financial Services","PROFESSIONAL_DEV","Dues - Membership","Finance Admin","NSSB/410","General Fund","FIN SVS>DEF",3400,null,"Wade Tattrie"]
[68410410,1000,1600000000,"797500","Financial Services","Financial Services","INSURANCE","Insurance - Liabilit","Finance Admin","NSSB/410","General Fund","FIN SVS>DEF",74664,null,"Wade Tattrie"]
[68410410,1000,1600000000,"814600","Financial Services","Financial Services","PROFESSIONAL_DEV","PD-Non-Teachers Cont","Finance Admin","NSSB/410","General Fund","FIN SVS>DEF",2000,null,"Wade Tattrie"]
[68410510,1000,1650000000,"631100","Human Resource Servi","Human Resources","TRAVEL","Travel - In Province","HR Admin","NSSB/510","General Fund","HR SVS>DEF",17400,null,"Brian Bonia"]
[68410510,1000,1650000000,"652300","Human Resource Servi","Human Resources","CONTRACTED_SERVICES","Negotiations","HR Admin","NSSB/510","General Fund","HR SVS>DEF",4000,null,"Brian Bonia"]
[68410510,1000,1650000000,"652900","Human Resource Servi","Human Resources","CONTRACTED_SERVICES","Other Prof.Services","HR Admin","NSSB/510","General Fund","HR SVS>DEF",2000,null,"Brian Bonia"]
[68410510,1000,1650000000,"721250","Human Resource Servi","Human Resources","REPAIRS/MAINT","Other Contract.Servi","HR Admin","NSSB/510","General Fund","HR SVS>DEF",29000,null,"Brian Bonia"]
[68410510,1000,1650000000,"784100","Human Resource Servi","Human Resources","SUPPLIES/MATERIALS","Telecommunications","HR Admin","NSSB/510","General Fund","HR SVS>DEF",500,null,"Brian Bonia"]
[68410510,1000,1650000000,"784800","Human Resource Servi","Human Resources","SUPPLIES/MATERIALS","Telecomm - Cellular","HR Admin","NSSB/510","General Fund","HR SVS>DEF",1200,null,"Brian Bonia"]
[68410510,1000,1650000000,"786400","Human Resource Servi","Human Resources","SUPPLIES/MATERIALS","Supplies & Materials","HR Admin","NSSB/510","General Fund","HR SVS>DEF",2000,null,"Brian Bonia"]
[68410510,1000,1650000000,"786800","Human Resource Servi","Human Resources","SUPPLIES/MATERIALS","Adver.and Promotion","HR Admin","NSSB/510","General Fund","HR SVS>DEF",10000,null,"Brian Bonia"]
[68410510,1000,1650000000,"786850","Human Resource Servi","Human Resources","PROFESSIONAL_DEV","Dues - Membership","HR Admin","NSSB/510","General Fund","HR SVS>DEF",2000,null,"Brian Bonia"]
[68410510,1000,1650000000,"814650","Human Resource Servi","Human Resources","PROFESSIONAL_DEV","PD-Non Teach Non-Con","HR Admin","NSSB/510","General Fund","HR SVS>DEF",1000,null,"Brian Bonia"]
[68410700,1000,1550000000,"631100","Operational Services","Operations Admin","TRAVEL","Travel - In Province","Operations Admin","NSSB/700","General Fund","MGT SVS>DEF",14000,null,"Andy Selig and Brian Judge"]
[68410700,1115,1550000000,"652900","Operational Services","Operations Admin","CONTRACTED_SERVICES","Other Prof.Services","Operations Admin","NSSB/700","Enrolment Prjctn Srv","MGT SVS>DEF",26200,null,"Andy Selig and Brian Judge"]
[68410700,1000,1550000000,"731100","Operational Services","Operations Admin","VEHICLE_EXPENSES","Vehicle Parts & Repa","Operations Admin","NSSB/700","General Fund","MGT SVS>DEF",4000,null,"Andy Selig and Brian Judge"]
[68410700,1000,1550000000,"731200","Operational Services","Operations Admin","VEHICLE_EXPENSES","Gasoline","Operations Admin","NSSB/700","General Fund","MGT SVS>DEF",4500,null,"Andy Selig and Brian Judge"]
[68410700,1000,1550000000,"784800","Operational Services","Operations Admin","SUPPLIES/MATERIALS","Telecomm - Cellular","Operations Admin","NSSB/700","General Fund","MGT SVS>DEF",2400,null,"Andy Selig and Brian Judge"]
[68410700,1000,1550000000,"786400","Operational Services","Operations Admin","SUPPLIES/MATERIALS","Supplies & Materials","Operations Admin","NSSB/700","General Fund","MGT SVS>DEF",2000,null,"Andy Selig and Brian Judge"]
[68410700,1000,1550000000,"786850","Operational Services","Operations Admin","PROFESSIONAL_DEV","Dues - Membership","Operations Admin","NSSB/700","General Fund","MGT SVS>DEF",1000,null,"Andy Selig and Brian Judge"]
[68410741,1000,1750000000,"631100","Operational Services","Technology Services","TRAVEL","Travel - In Province","Tech Svs BoardOffice","NSSB/741","General Fund","IT REGL>DEF",300,"Rob","Andy Selig "]
[68410741,1000,1750000000,"784800","Operational Services","Technology Services","SUPPLIES/MATERIALS","Telecomm - Cellular","Tech Svs BoardOffice","NSSB/741","General Fund","IT REGL>DEF",400,"Rob","Andy Selig "]
[68410741,1000,1750000000,"786400","Operational Services","Technology Services","SUPPLIES/MATERIALS","Supplies & Materials","Tech Svs BoardOffice","NSSB/741","General Fund","IT REGL>DEF",600,"Rob","Andy Selig "]
[68410741,1000,1750000000,"786450","Operational Services","Technology Services","SUPPLIES/MATERIALS","Computer Supplies","Tech Svs BoardOffice","NSSB/741","General Fund","IT REGL>DEF",2700,"Rob","Andy Selig "]
[68410741,1000,1750000000,"786460","Operational Services","Technology Services","SUPPLIES/MATERIALS","Software Supplies","Tech Svs BoardOffice","NSSB/741","General Fund","IT REGL>DEF",18000,"Rob","Andy Selig "]
[68520310,1000,1550000000,"631100","Office of the Superi","Office of the Superi","TRAVEL","Travel - In Province","Office of the Super","NSSB/310","General Fund","MGT SVS>DEF",8000,null,"Scott Milner"]
[68520310,1000,1550000000,"784100","Office of the Superi","Office of the Superi","SUPPLIES/MATERIALS","Telecommunications","Office of the Super","NSSB/310","General Fund","MGT SVS>DEF",400,null,"Scott Milner"]
[68520310,1000,1550000000,"784800","Office of the Superi","Office of the Superi","SUPPLIES/MATERIALS","Telecomm - Cellular","Office of the Super","NSSB/310","General Fund","MGT SVS>DEF",500,null,"Scott Milner"]
[68520310,1000,1550000000,"786400","Office of the Superi","Office of the Superi","SUPPLIES/MATERIALS","Supplies & Materials","Office of the Super","NSSB/310","General Fund","MGT SVS>DEF",400,null,"Scott Milner"]
[68520310,1000,1550000000,"786850","Office of the Superi","Office of the Superi","PROFESSIONAL_DEV","Dues - Membership","Office of the Super","NSSB/310","General Fund","MGT SVS>DEF",750,null,"Scott Milner"]
[68520310,1000,1550000000,"814100","Office of the Superi","Office of the Superi","PROFESSIONAL_DEV","Conference - In Prov","Office of the Super","NSSB/310","General Fund","MGT SVS>DEF",1200,null,"Scott Milner"]
[68520310,1000,1550000000,"814150","Office of the Superi","Office of the Superi","PROFESSIONAL_DEV","Conference - Out of","Office of the Super","NSSB/310","General Fund","MGT SVS>DEF",3000,null,"Scott Milner"]
[68921003,1015,3450050001,"631100","School Services","Program Grants","TRAVEL","Travel - In Province","Programs-RCH","NSSB/003","SSW","P&C SUP-SS>PRIN ACCT",5500," ","Lamar Eason"]
[68921003,1015,3450050001,"784800","School Services","Program Grants","SUPPLIES/MATERIALS","Telecomm - Cellular","Programs-RCH","NSSB/003","SSW","P&C SUP-SS>PRIN ACCT",1200," ","Lamar Eason"]
[68921003,1015,3450050001,"786400","School Services","Program Grants","SUPPLIES/MATERIALS","Supplies & Materials","Programs-RCH","NSSB/003","SSW","P&C SUP-SS>PRIN ACCT",3000," ","Lamar Eason"]
[68921003,1036,6000000000,"786400","School Services","Program Grants","SUPPLIES/MATERIALS","Supplies & Materials","Programs-RCH","NSSB/009","HistPNS","OTH PRG>DEF",3000,"","Lamar Eason"]
[68921003,1043,2100010000,"786400","School Services","Program Grants","SUPPLIES/MATERIALS","Supplies & Materials","Programs-RCH","NSSB/003","AFNS Lit/Math","PGM-TCHRS>RCH",19790," ","Lamar Eason"]
[68921004,6055,2100000000,"631100","School Services","Program Grants","TRAVEL","Travel - In Province","Programs-Pgm&StudSvs","NSSB/004","School Food Project","PGM-TCHRS>DEF",5000,"Health Promoter","Jeff DeWolfe"]
[68921004,6029,3401010000,"652900","School Services","Program Grants","CONTRACTED_SERVICES","Other Prof.Services","Programs-Pgm&StudSvs","NSSB/004","Tutor Program","INST - SS>TUTORS",2000," ","Jeff DeWolfe"]
[68921004,6055,2100000000,"652900","School Services","Program Grants","CONTRACTED_SERVICES","Other Prof.Services","Programs-Pgm&StudSvs","NSSB/004","School Food Project","PGM-TCHRS>DEF",100000,"Health Promoter","Jeff DeWolfe"]
[68921004,1011,3450000000,"786400","School Services","Program Grants","SUPPLIES/MATERIALS","Supplies & Materials","Programs-Pgm&StudSvs","NSSB/004","SSG","P&C SUP-SS>DEF",136200," ","Jeff DeWolfe"]
[68921004,6055,2100000000,"786400","School Services","Program Grants","SUPPLIES/MATERIALS","Supplies & Materials","Programs-Pgm&StudSvs","NSSB/004","School Food Project","PGM-TCHRS>DEF",10000,"Health Promoter","Jeff DeWolfe"]
[68921004,1073,2100000000,"786600","School Services","Program Grants","SUPPLIES/MATERIALS","Textbook Cr. Allocat","Programs-Pgm&StudSvs","NSSB/004","TxtBookCred","PGM-TCHRS>DEF",364700," ","Jeff DeWolfe"]
[68921005,1027,3450000004,"631100","School Services","Program Grants","TRAVEL","Travel - In Province","Programs-CoorStudSvs","NSSB/005","SNS","P&C SUP-SS>SPENEED",3000," ","Darren Haley"]
[68921005,6022,3350000000,"631100","School Services","Program Grants","TRAVEL","Travel - In Province","Programs-CoorStudSvs","NSSB/005","Health Care Needs","PRGMGT-SS>DEF",1000," ","Darren Haley"]
[68921005,6022,3350000000,"652900","School Services","Program Grants","CONTRACTED_SERVICES","Other Prof.Services","Programs-CoorStudSvs","NSSB/005","Health Care Needs","PRGMGT-SS>DEF",30000," ","Darren Haley"]
[68921005,6022,3350000000,"784800","School Services","Program Grants","SUPPLIES/MATERIALS","Telecomm - Cellular","Programs-CoorStudSvs","NSSB/005","Health Care Needs","PRGMGT-SS>DEF",400," ","Darren Haley"]
[68921005,1027,3450000004,"786400","School Services","Program Grants","SUPPLIES/MATERIALS","Supplies & Materials","Programs-CoorStudSvs","NSSB/005","SNS","P&C SUP-SS>SPENEED",118418," ","Darren Haley"]
[68921005,1050,3350390000,"786400","School Services","Program Grants","SUPPLIES/MATERIALS","Supplies & Materials","Programs-CoorStudSvs","NSSB/005","LDF","PRGMGT-SS>SLD",20975," ","Darren Haley"]
[68921005,1051,3100000000,"786400","School Services","Program Grants","SUPPLIES/MATERIALS","Supplies & Materials","Programs-CoorStudSvs","NSSB/005","CompG&C","GUID SVS>DEF",5260," ","Darren Haley"]
[68921005,1080,3350000000,"786400","School Services","Program Grants","SUPPLIES/MATERIALS","Supplies & Materials","Programs-CoorStudSvs","NSSB/005","Safe & Inclusive Sch","PRGMGT-SS>DEF",4593," ","Darren Haley"]
[68921005,1083,3450000005,"786400","School Services","Program Grants","SUPPLIES/MATERIALS","Supplies & Materials","Programs-CoorStudSvs","NSSB/005","PEERS","P&C SUP-SS>PEERS",4525," ","Darren Haley"]
[68921005,1126,3350000000,"786400","School Services","Program Grants","SUPPLIES/MATERIALS","Supplies & Materials","Programs-CoorStudSvs","NSSB/005","OT and PT Services","PRGMGT-SS>DEF",9823," ","Darren Haley"]
[68921005,1129,3350000000,"786400","School Services","Program Grants","SUPPLIES/MATERIALS","Supplies & Materials","Programs-CoorStudSvs","NSSB/005","Co-Teaching Training","PRGMGT-SS>DEF",1046," ","Darren Haley"]
[68921005,1137,3350000000,"786400","School Services","Program Grants","SUPPLIES/MATERIALS","Supplies & Materials","Programs-CoorStudSvs","NSSB/005","Autism Spectrum Disorder","PRGMGT-SS>DEF",33360," ","Darren Haley"]
[68921005,1138,3350000000,"786400","School Services","Program Grants","SUPPLIES/MATERIALS","Supplies & Materials","Programs-CoorStudSvs","NSSB/005","Special Education Support Grant","PRGMGT-SS>DEF",70000," ","Darren Haley"]
[68921005,6022,3350000000,"786400","School Services","Program Grants","SUPPLIES/MATERIALS","Supplies & Materials","Programs-CoorStudSvs","NSSB/005","Health Care Needs","PRGMGT-SS>DEF",1000," ","Darren Haley"]
[68921005,6022,3350000000,"786850","School Services","Program Grants","PROFESSIONAL_DEV","Dues - Membership","Programs-CoorStudSvs","NSSB/005","Health Care Needs","PRGMGT-SS>DEF",700," ","Darren Haley"]
[68921006,1048,2100890000,"631100","School Services","Program Grants","TRAVEL","Travel - In Province","Programs-Tech&Data","NSSB/006","SISP","PGM-TCHRS>SIS",6500," ","Jim Dexter"]
[68921006,1081,2100000000,"711300","School Services","Program Grants","REPAIRS/MAINT","Computer Hard./Maint","Programs-Tech&Data","NSSB/006","TELP","PGM-TCHRS>DEF",60000," ","Jeff DeWolfe"]
[68921006,1048,2100890000,"784800","School Services","Program Grants","SUPPLIES/MATERIALS","Telecomm - Cellular","Programs-Tech&Data","NSSB/006","SISP","PGM-TCHRS>SIS",400," ","Jim Dexter"]
[68921006,1048,2100890000,"786400","School Services","Program Grants","SUPPLIES/MATERIALS","Supplies & Materials","Programs-Tech&Data","NSSB/006","SISP","PGM-TCHRS>SIS",1500," ","Jim Dexter"]
[68921006,1054,2100000011,"786400","School Services","Program Grants","SUPPLIES/MATERIALS","Supplies & Materials","Programs-Tech&Data","NSSB/006","NSVirtual","PGM-TCHRS>ONLINED",58481," ","Jim Dexter"]
[68921006,6016,2100000000,"786400","School Services","Program Grants","SUPPLIES/MATERIALS","Supplies & Materials","Programs-Tech&Data","NSSB/006","Tell Them from Me","PGM-TCHRS>DEF",2334," ","Jim Dexter"]
[68921006,1048,2100890000,"786460","School Services","Program Grants","SUPPLIES/MATERIALS","Software Supplies","Programs-Tech&Data","NSSB/006","SISP","PGM-TCHRS>SIS",47000," ","Jim Dexter"]
[68921007,1012,2100800000,"631100","School Services","Program Grants","TRAVEL","Travel - In Province","Programs-A&QualInstr","NSSB/007","Math","PGM-TCHRS>MATH",24000,"Denise and Paige","Denise Dodge-Baker"]
[68921007,1077,3450000008,"631100","School Services","Program Grants","TRAVEL","Travel - In Province","Programs-A&QualInstr","NSSB/009","PATHS","P&C SUP-SS>PATHS",4300,"","Denise Dodge-Baker"]
[68921007,1077,3450000008,"784800","School Services","Program Grants","SUPPLIES/MATERIALS","Telecomm - Cellular","Programs-A&QualInstr","NSSB/009","PATHS","P&C SUP-SS>PATHS",400,"","Denise Dodge-Baker"]
[68921007,1012,2100800000,"786400","School Services","Program Grants","SUPPLIES/MATERIALS","Supplies & Materials","Programs-A&QualInstr","NSSB/007","Math","PGM-TCHRS>MATH",47157,"Denise and Paige","Denise Dodge-Baker"]
[68921007,1053,2100000000,"786400","School Services","Program Grants","SUPPLIES/MATERIALS","Supplies & Materials","Programs-A&QualInstr","NSSB/007","CommUse","PGM-TCHRS>DEF",54001," ","Denise Dodge-Baker"]
[68921007,1057,2100000000,"786400","School Services","Program Grants","SUPPLIES/MATERIALS","Supplies & Materials","Programs-A&QualInstr","NSSB/009","EYP","PGM-TCHRS>DEF",39501,"","Denise Dodge-Baker"]
[68921007,1077,3450000008,"786400","School Services","Program Grants","SUPPLIES/MATERIALS","Supplies & Materials","Programs-A&QualInstr","NSSB/009","PATHS","P&C SUP-SS>PATHS",35000,"","Denise Dodge-Baker"]
[68921007,1135,2100000000,"786400","School Services","Program Grants","SUPPLIES/MATERIALS","Supplies & Materials","Programs-A&QualInstr","NSSB/007","PE Equipment Refresh","PGM-TCHRS>DEF",15500,null,"Denise Dodge-Baker"]
[68921009,1070,3400610000,"631100","School Services","Program Grants","TRAVEL","Travel - In Province","Programs-FSL&EYP&P-6","NSSB/009","FLAP","INST - SS>FR MONITOR",2500,"French Monitors","Paige Ferguson"]
[68921009,1001,2100310000,"786400","School Services","Program Grants","SUPPLIES/MATERIALS","Supplies & Materials","Programs-FSL&EYP&P-6","NSSB/009","MOL fund","PGM-TCHRS>MOL",16650,"Official Minority Language","Paige Ferguson"]
[68921009,1058,3050830000,"786400","School Services","Program Grants","SUPPLIES/MATERIALS","Supplies & Materials","Programs-FSL&EYP&P-6","NSSB/009","FILit","INST P-12>ELIT FR",42348,"French Immersion Literacy","Paige Ferguson"]
[68921009,1088,6000190000,"786400","School Services","Program Grants","SUPPLIES/MATERIALS","Supplies & Materials","Programs-FSL&EYP&P-6","NSSB/009","Science Fairs","OTH PRG>SCI FAIR",12000," ","Paige Ferguson"]
[68921012,1002,3450490000,"631100","School Services","Program Grants","TRAVEL","Travel - In Province","Programs-LiteracyCor","NSSB/009","RR fund","P&C SUP-SS>READ REC",5600,"","Gretchen Gerhardt"]
[68921012,1016,2100820000,"631100","School Services","Program Grants","TRAVEL","Travel - In Province","Programs-LiteracyCor","NSSB/009","Elit","PGM-TCHRS>E LIT",11500,"","Gretchen Gerhardt"]
[68921012,1002,3450490000,"784800","School Services","Program Grants","SUPPLIES/MATERIALS","Telecomm - Cellular","Programs-LiteracyCor","NSSB/009","RR fund","P&C SUP-SS>READ REC",400,"","Gretchen Gerhardt"]
[68921012,1016,2100820000,"784800","School Services","Program Grants","SUPPLIES/MATERIALS","Telecomm - Cellular","Programs-LiteracyCor","NSSB/009","Elit","PGM-TCHRS>E LIT",800,"","Gretchen Gerhardt"]
[68921012,1002,3450490000,"786400","School Services","Program Grants","SUPPLIES/MATERIALS","Supplies & Materials","Programs-LiteracyCor","NSSB/009","RR fund","P&C SUP-SS>READ REC",2850,"","Gretchen Gerhardt"]
[68921012,1016,2100820000,"786400","School Services","Program Grants","SUPPLIES/MATERIALS","Supplies & Materials","Programs-LiteracyCor","NSSB/009","Elit","PGM-TCHRS>E LIT",6500,"","Gretchen Gerhardt"]
[68921012,6033,2100000000,"786400","School Services","Program Grants","SUPPLIES/MATERIALS","Supplies & Materials","Programs-LiteracyCor","NSSB/009","Joyful Learning","PGM-TCHRS>DEF",10000,"","Gretchen Gerhardt"]
[68921013,1078,2100000013,"631100","School Services","Program Grants","TRAVEL","Travel - In Province","Programs-CBL","NSSB/007","STEP","PGM-TCHRS>STEPPGM",500,"","Beth Woodford-Collins"]
[68921013,1055,2100000000,"631400","School Services","Program Grants","TRAVEL","Extra-Curricular Tra","Programs-CBL","NSSB/007","DisOpp","PGM-TCHRS>DEF",1000,"","Beth Woodford-Collins"]
[68921013,1078,2100000013,"631400","School Services","Program Grants","TRAVEL","Extra-Curricular Tra","Programs-CBL","NSSB/007","STEP","PGM-TCHRS>STEPPGM",300,"","Beth Woodford-Collins"]
[68921013,1078,2100000013,"652900","School Services","Program Grants","CONTRACTED_SERVICES","Other Prof.Services","Programs-CBL","NSSB/007","STEP","PGM-TCHRS>STEPPGM",24000,"","Beth Woodford-Collins"]
[68921013,1078,2100000013,"784800","School Services","Program Grants","SUPPLIES/MATERIALS","Telecomm - Cellular","Programs-CBL","NSSB/007","STEP","PGM-TCHRS>STEPPGM",400,"","Beth Woodford-Collins"]
[68921013,1055,2100000000,"786400","School Services","Program Grants","SUPPLIES/MATERIALS","Supplies & Materials","Programs-CBL","NSSB/007","DisOpp","PGM-TCHRS>DEF",28475,"","Beth Woodford-Collins"]
[68921013,1078,2100000013,"786400","School Services","Program Grants","SUPPLIES/MATERIALS","Supplies & Materials","Programs-CBL","NSSB/007","STEP","PGM-TCHRS>STEPPGM",10000,"","Beth Woodford-Collins"]
[68921013,1087,3250050000,"786400","School Services","Program Grants","SUPPLIES/MATERIALS","Supplies & Materials","Programs-CBL","NSSB/007","TechEd/SkilledTrades","PRG SUP>P-12",15386,"","Beth Woodford-Collins"]
[68929000,1000,1050000000,"814100","Board Governance","Board Governance","PROFESSIONAL_DEV","Conference - In Prov","Board Members","NSSB/000","General Fund","BRD MBR>DEF",9609,null,"Scott Milner"]
[68929001,1000,1050000000,"784100","Board Governance","Board Governance","SUPPLIES/MATERIALS","Telecommunications","Crossland,Elizabeth","NSSB/001","General Fund","BRD MBR>DEF",450,null,"Scott Milner"]
[68929001,1000,1050000000,"814100","Board Governance","Board Governance","PROFESSIONAL_DEV","Conference - In Prov","Crossland,Elizabeth","NSSB/001","General Fund","BRD MBR>DEF",1400,null,"Scott Milner"]
[68929003,1000,1050000000,"784100","Board Governance","Board Governance","SUPPLIES/MATERIALS","Telecommunications","Maquire, Christian","NSSB/003","General Fund","BRD MBR>DEF",400,null,"Scott Milner"]
[68929003,1000,1050000000,"814100","Board Governance","Board Governance","PROFESSIONAL_DEV","Conference - In Prov","Maquire, Christian","NSSB/003","General Fund","BRD MBR>DEF",1400,null,"Scott Milner"]
[68929004,1000,1050000000,"784100","Board Governance","Board Governance","SUPPLIES/MATERIALS","Telecommunications","Griffin,Theresa","NSSB/004","General Fund","BRD MBR>DEF",400,null,"Scott Milner"]
[68929004,1000,1050000000,"814100","Board Governance","Board Governance","PROFESSIONAL_DEV","Conference - In Prov","Griffin,Theresa","NSSB/004","General Fund","BRD MBR>DEF",1400,null,"Scott Milner"]
[68929005,1000,1050000000,"784100","Board Governance","Board Governance","SUPPLIES/MATERIALS","Telecommunications","Naugler,Jennifer","NSSB/005","General Fund","BRD MBR>DEF",400,null,"Scott Milner"]
[68929005,1000,1050000000,"814100","Board Governance","Board Governance","PROFESSIONAL_DEV","Conference - In Prov","Naugler,Jennifer","NSSB/005","General Fund","BRD MBR>DEF",1400,null,"Scott Milner"]
[68929007,1000,1050000000,"784100","Board Governance","Board Governance","SUPPLIES/MATERIALS","Telecommunications","Payzant,Elliott","NSSB/007","General Fund","BRD MBR>DEF",400,null,"Scott Milner"]
[68929007,1000,1050000000,"784800","Board Governance","Board Governance","SUPPLIES/MATERIALS","Telecomm - Cellular","Payzant,Elliott","NSSB/007","General Fund","BRD MBR>DEF",200,null,"Scott Milner"]
[68929007,1000,1050000000,"814100","Board Governance","Board Governance","PROFESSIONAL_DEV","Conference - In Prov","Payzant,Elliott","NSSB/007","General Fund","BRD MBR>DEF",1400,null,"Scott Milner"]
[68929008,1000,1050000000,"784100","Board Governance","Board Governance","SUPPLIES/MATERIALS","Telecommunications","Simms,Vernon","NSSB/008","General Fund","BRD MBR>DEF",350,null,"Scott Milner"]
[68929008,1000,1050000000,"814100","Board Governance","Board Governance","PROFESSIONAL_DEV","Conference - In Prov","Simms,Vernon","NSSB/008","General Fund","BRD MBR>DEF",1400,null,"Scott Milner"]
[68929009,1000,1050000000,"784100","Board Governance","Board Governance","SUPPLIES/MATERIALS","Telecommunications","Garrison, Patricia","NSSB/009","General Fund","BRD MBR>DEF",400,null,"Scott Milner"]
[68929009,1000,1050000000,"814100","Board Governance","Board Governance","PROFESSIONAL_DEV","Conference - In Prov","Garrison, Patricia","NSSB/009","General Fund","BRD MBR>DEF",1400,null,"Scott Milner"]
[68929010,1000,1050000000,"784100","Board Governance","Board Governance","SUPPLIES/MATERIALS","Telecommunications","Stewart, Michael","NSSB/010","General Fund","BRD MBR>DEF",450,null,"Scott Milner"]
[68929010,1000,1050000000,"814100","Board Governance","Board Governance","PROFESSIONAL_DEV","Conference - In Prov","Stewart, Michael","NSSB/010","General Fund","BRD MBR>DEF",1400,null,"Scott Milner"]
[68938610,1079,3600770000,"711475","School Services","School Costs","CONTRACTED_SERVICES","Equipment - Lease","General Account-LAH","Gen Acct","AdultHigh","A&C ED>COMM ED",1800,null,"Beth Woodford-Collins"]
[68938610,1079,3600770000,"786400","School Services","School Costs","SUPPLIES/MATERIALS","Supplies & Materials","General Account-LAH","Gen Acct","AdultHigh","A&C ED>COMM ED",2931,null,"Beth Woodford-Collins"]
[68938702,1079,4150000000,"786300","Operational Services","Property Services","CONTRACTED_SERVICES","Building/Facilities","Maint-LAH","Maint","AdultHigh","MAINT>DEF",15594,null,"Andy Selig and Brian Judge"]
[68940610,1079,3600770000,"631100","School Services","School Costs","TRAVEL","Travel - In Province","General Account-QAH","Gen Acct","AdultHigh","A&C ED>COMM ED",800,null,"Beth Woodford-Collins"]
[68940610,1079,3600770000,"711475","School Services","School Costs","CONTRACTED_SERVICES","Equipment - Lease","General Account-QAH","Gen Acct","AdultHigh","A&C ED>COMM ED",1000,null,"Beth Woodford-Collins"]
[68940610,1079,3600770000,"784100","School Services","School Costs","SUPPLIES/MATERIALS","Telecommunications","General Account-QAH","Gen Acct","AdultHigh","A&C ED>COMM ED",600,null,"Beth Woodford-Collins"]
[68940610,1079,3600770000,"786400","School Services","School Costs","SUPPLIES/MATERIALS","Supplies & Materials","General Account-QAH","Gen Acct","AdultHigh","A&C ED>COMM ED",2902,null,"Beth Woodford-Collins"]
[68940702,1079,4150000000,"786300","Operational Services","Property Services","CONTRACTED_SERVICES","Building/Facilities","Maint-QAH","Maint","AdultHigh","MAINT>DEF",26711,null,"Andy Selig and Brian Judge"]
[68959703,1000,4150000000,"785300","Operational Services","Property Services","UTILITIES","Propane","Utilities-BBG","Utilities","General Fund","MAINT>DEF",19800,null,"Andy Selig and Brian Judge"]
[68978731,1000,5100000000,"631100","Operational Services","Student Transportati","TRAVEL","Travel - In Province","Board Trans Costs","NSSB/731","General Fund","TRANS >DEF",27000,null,"Denise Crouse"]
[68978731,1000,5100000000,"711400","Operational Services","Student Transportati","REPAIRS/MAINT","Equipment","Board Trans Costs","NSSB/731","General Fund","TRANS >DEF",7000,null,"Denise Crouse"]
[68978731,1000,5100000000,"711450","Operational Services","Student Transportati","REPAIRS/MAINT","Equipment - Repair","Board Trans Costs","NSSB/731","General Fund","TRANS >DEF",10000,null,"Denise Crouse"]
[68978731,1000,5100000000,"721400","Operational Services","Student Transportati","REPAIRS/MAINT","Environmental","Board Trans Costs","NSSB/731","General Fund","TRANS >DEF",2700,null,"Denise Crouse"]
[68978731,1000,5100000000,"731100","Operational Services","Student Transportati","VEHICLE_EXPENSES","Vehicle Parts & Repa","Board Trans Costs","NSSB/731","General Fund","TRANS >DEF",270000,null,"Denise Crouse"]
[68978731,1000,5100000000,"731150","Operational Services","Student Transportati","VEHICLE_EXPENSES","Diesel Fuel","Board Trans Costs","NSSB/731","General Fund","TRANS >DEF",416100,null,"Denise Crouse"]
[68978731,1000,5100000000,"731200","Operational Services","Student Transportati","VEHICLE_EXPENSES","Gasoline","Board Trans Costs","NSSB/731","General Fund","TRANS >DEF",1700,null,"Denise Crouse"]
[68978731,1000,5100000000,"731250","Operational Services","Student Transportati","VEHICLE_EXPENSES","Tires/Tubes","Board Trans Costs","NSSB/731","General Fund","TRANS >DEF",90000,null,"Denise Crouse"]
[68978731,1000,5100000000,"731400","Operational Services","Student Transportati","VEHICLE_EXPENSES","Lubricants","Board Trans Costs","NSSB/731","General Fund","TRANS >DEF",20700,null,"Denise Crouse"]
[68978731,1000,5100000000,"784100","Operational Services","Student Transportati","SUPPLIES/MATERIALS","Telecommunications","Board Trans Costs","NSSB/731","General Fund","TRANS >DEF",1800,null,"Denise Crouse"]
[68978731,1000,5250000000,"786000","Operational Services","Student Transportati","CONTRACTED_SERVICES","Snow Removal","Board Trans Costs","NSSB/731","General Fund","STE MAINT>DEF",25000,null,"Denise Crouse"]
[68978731,1000,5100000000,"786400","Operational Services","Student Transportati","SUPPLIES/MATERIALS","Supplies & Materials","Board Trans Costs","NSSB/731","General Fund","TRANS >DEF",37000,null,"Denise Crouse"]
[68978731,1000,5100000000,"786700","Operational Services","Student Transportati","SUPPLIES/MATERIALS","Cour/Freight/Deliv","Board Trans Costs","NSSB/731","General Fund","TRANS >DEF",1200,null,"Denise Crouse"]
[68960731,1000,5100000000,"711400","Operational Services","Student Transportati","REPAIRS/MAINT","Equipment","Board Trans Costs","NSSB/731","General Fund","TRANS >DEF",3000,null,"Denise Crouse"]
[68960731,1000,5100000000,"711450","Operational Services","Student Transportati","REPAIRS/MAINT","Equipment - Repair","Board Trans Costs","NSSB/731","General Fund","TRANS >DEF",3000,null,"Denise Crouse"]
[68960731,1000,5100000000,"721400","Operational Services","Student Transportati","REPAIRS/MAINT","Environmental","Board Trans Costs","NSSB/731","General Fund","TRANS >DEF",1300,null,"Denise Crouse"]
[68960731,1000,5100000000,"731100","Operational Services","Student Transportati","VEHICLE_EXPENSES","Vehicle Parts & Repa","Board Trans Costs","NSSB/731","General Fund","TRANS >DEF",130000,null,"Denise Crouse"]
[68960731,1000,5100000000,"731150","Operational Services","Student Transportati","VEHICLE_EXPENSES","Diesel Fuel","Board Trans Costs","NSSB/731","General Fund","TRANS >DEF",153900,null,"Denise Crouse"]
[68960731,1000,5100000000,"731250","Operational Services","Student Transportati","VEHICLE_EXPENSES","Tires/Tubes","Board Trans Costs","NSSB/731","General Fund","TRANS >DEF",20000,null,"Denise Crouse"]
[68960731,1000,5100000000,"731400","Operational Services","Student Transportati","VEHICLE_EXPENSES","Lubricants","Board Trans Costs","NSSB/731","General Fund","TRANS >DEF",5800,null,"Denise Crouse"]
[68960731,1000,5100000000,"784100","Operational Services","Student Transportati","SUPPLIES/MATERIALS","Telecommunications","Board Trans Costs","NSSB/731","General Fund","TRANS >DEF",300,null,"Denise Crouse"]
[68960731,1000,5100000000,"786400","Operational Services","Student Transportati","SUPPLIES/MATERIALS","Supplies & Materials","Board Trans Costs","NSSB/731","General Fund","TRANS >DEF",3500,null,"Denise Crouse"]
[68974701,1000,4100000000,"631100","Operational Services","Property Services","TRAVEL","Travel - In Province","Custodial-RSB","Custodial","General Fund","CUST >DEF",4000,null,"Andy Selig and Brian Judge"]
[68974701,1000,4100000000,"711400","Operational Services","Property Services","REPAIRS/MAINT","Equipment","Custodial-RSB","Custodial","General Fund","CUST >DEF",34000,null,"Andy Selig and Brian Judge"]
[68974701,1000,4100000000,"711450","Operational Services","Property Services","REPAIRS/MAINT","Equipment - Repair","Custodial-RSB","Custodial","General Fund","CUST >DEF",10000,null,"Andy Selig and Brian Judge"]
[68974701,1000,4100000000,"784800","Operational Services","Property Services","SUPPLIES/MATERIALS","Telecomm - Cellular","Custodial-RSB","Custodial","General Fund","CUST >DEF",4000,null,"Andy Selig and Brian Judge"]
[68974701,1000,4100000000,"785900","Operational Services","Property Services","CONTRACTED_SERVICES","Garbage Removal","Custodial-RSB","Custodial","General Fund","CUST >DEF",153500,null,"Andy Selig and Brian Judge"]
[68974701,1000,4100000000,"786000","Operational Services","Property Services","CONTRACTED_SERVICES","Snow Removal","Custodial-RSB","Custodial","General Fund","CUST >DEF",340000,null,"Andy Selig and Brian Judge"]
[68974701,1000,4100000000,"786150","Operational Services","Property Services","SUPPLIES/MATERIALS","Custodial Supplies","Custodial-RSB","Custodial","General Fund","CUST >DEF",120000,null,"Andy Selig and Brian Judge"]
[68974701,1000,4100000000,"786400","Operational Services","Property Services","SUPPLIES/MATERIALS","Supplies & Materials","Custodial-RSB","Custodial","General Fund","CUST >DEF",28000,null,"Andy Selig and Brian Judge"]
[68974701,1000,4100000000,"814450","Operational Services","Property Services","PROFESSIONAL_DEV","In Ser.-Non-Teach.No","Custodial-RSB","Custodial","General Fund","CUST >DEF",2500,null,"Andy Selig and Brian Judge"]
[68974702,1000,4200000000,"711400","Operational Services","Property Services","REPAIRS/MAINT","Equipment","Maint-Grounds","Maint","General Fund","GRNDS>DEF",5000,null,"Andy Selig and Brian Judge"]
[68974702,1000,4200000000,"711450","Operational Services","Property Services","REPAIRS/MAINT","Equipment - Repair","Maint-Grounds","Maint","General Fund","GRNDS>DEF",2000,null,"Andy Selig and Brian Judge"]
[68974702,1000,4200000000,"721140","Operational Services","Property Services","REPAIRS/MAINT","Playground Maint","Maint-Grounds","Maint","General Fund","GRNDS>DEF",13000,null,"Andy Selig and Brian Judge"]
[68974702,1000,4200000000,"731100","Operational Services","Property Services","VEHICLE_EXPENSES","Vehicle Parts & Repa","Maint-Grounds","Maint","General Fund","GRNDS>DEF",5000,null,"Andy Selig and Brian Judge"]
[68974702,1000,4200000000,"731200","Operational Services","Property Services","VEHICLE_EXPENSES","Gasoline","Maint-Grounds","Maint","General Fund","GRNDS>DEF",5000,null,"Andy Selig and Brian Judge"]
[68974702,1000,4200000000,"731250","Operational Services","Property Services","VEHICLE_EXPENSES","Tires/Tubes","Maint-Grounds","Maint","General Fund","GRNDS>DEF",170,null,"Andy Selig and Brian Judge"]
[68974702,1000,4200000000,"731300","Operational Services","Property Services","VEHICLE_EXPENSES","Veh.Fees/Licenses/In","Maint-Grounds","Maint","General Fund","GRNDS>DEF",300,null,"Andy Selig and Brian Judge"]
[68974702,1000,4200000000,"784800","Operational Services","Property Services","SUPPLIES/MATERIALS","Telecomm - Cellular","Maint-Grounds","Maint","General Fund","GRNDS>DEF",200,null,"Andy Selig and Brian Judge"]
[68974702,1000,4200000000,"786400","Operational Services","Property Services","SUPPLIES/MATERIALS","Supplies & Materials","Maint-Grounds","Maint","General Fund","GRNDS>DEF",3000,null,"Andy Selig and Brian Judge"]
[68976702,1000,4150000000,"711100","Operational Services","Property Services","CONTRACTED_SERVICES","Security Systems","Maint-RSB","Maint","General Fund","MAINT>DEF",20000,null,"Andy Selig and Brian Judge"]
[68976702,1000,4150000000,"711200","Operational Services","Property Services","CONTRACTED_SERVICES","PA Systems","Maint-RSB","Maint","General Fund","MAINT>DEF",4000,null,"Andy Selig and Brian Judge"]
[68976702,1000,4150000000,"711250","Operational Services","Property Services","CONTRACTED_SERVICES","Fire Safety","Maint-RSB","Maint","General Fund","MAINT>DEF",30000,null,"Andy Selig and Brian Judge"]
[68976702,1000,4150000000,"721160","Operational Services","Property Services","REPAIRS/MAINT","Building Maintenance","Maint-RSB","Maint","General Fund","MAINT>DEF",525000,null,"Andy Selig and Brian Judge"]
[68976702,1000,4150000000,"721400","Operational Services","Property Services","REPAIRS/MAINT","Environmental","Maint-RSB","Maint","General Fund","MAINT>DEF",5100,null,"Andy Selig and Brian Judge"]
[68976702,1000,4150000000,"731100","Operational Services","Property Services","VEHICLE_EXPENSES","Vehicle Parts & Repa","Maint-RSB","Maint","General Fund","MAINT>DEF",25000,null,"Andy Selig and Brian Judge"]
[68976702,1000,4150000000,"731200","Operational Services","Property Services","VEHICLE_EXPENSES","Gasoline","Maint-RSB","Maint","General Fund","MAINT>DEF",25000,null,"Andy Selig and Brian Judge"]
[68976702,1000,4150000000,"731250","Operational Services","Property Services","VEHICLE_EXPENSES","Tires/Tubes","Maint-RSB","Maint","General Fund","MAINT>DEF",2000,null,"Andy Selig and Brian Judge"]
[68976702,1000,4150000000,"731300","Operational Services","Property Services","VEHICLE_EXPENSES","Veh.Fees/Licenses/In","Maint-RSB","Maint","General Fund","MAINT>DEF",3500,null,"Andy Selig and Brian Judge"]
[68976702,1000,4150000000,"784100","Operational Services","Property Services","SUPPLIES/MATERIALS","Telecommunications","Maint-RSB","Maint","General Fund","MAINT>DEF",2700,null,"Andy Selig and Brian Judge"]
[68976702,1000,4150000000,"784800","Operational Services","Property Services","SUPPLIES/MATERIALS","Telecomm - Cellular","Maint-RSB","Maint","General Fund","MAINT>DEF",3000,null,"Andy Selig and Brian Judge"]
[68976702,1000,4150000000,"786100","Operational Services","Property Services","CONTRACTED_SERVICES","Pest Control","Maint-RSB","Maint","General Fund","MAINT>DEF",4000,null,"Andy Selig and Brian Judge"]
[68976702,1000,4150000000,"786300","Operational Services","Property Services","CONTRACTED_SERVICES","Building/Facilities","Maint-RSB","Maint","General Fund","MAINT>DEF",206537,null,"Andy Selig and Brian Judge"]
[68976702,1000,4150000000,"786400","Operational Services","Property Services","SUPPLIES/MATERIALS","Supplies & Materials","Maint-RSB","Maint","General Fund","MAINT>DEF",16000,null,"Andy Selig and Brian Judge"]
[68976702,1000,4150000000,"786700","Operational Services","Property Services","SUPPLIES/MATERIALS","Cour/Freight/Deliv","Maint-RSB","Maint","General Fund","MAINT>DEF",1700,null,"Andy Selig and Brian Judge"]
[68976702,1000,4150000000,"797700","Operational Services","Property Services","INSURANCE","Insurance - Building","Maint-RSB","Maint","General Fund","MAINT>DEF",207468,null,"Andy Selig and Brian Judge"]
[68976702,1000,4150000000,"814450","Operational Services","Property Services","PROFESSIONAL_DEV","In Ser.-Non-Teach.No","Maint-RSB","Maint","General Fund","MAINT>DEF",1200,null,"Andy Selig and Brian Judge"]
[68976702,1000,4150000000,"827140","Operational Services","Property Services","TCA_EXPENSE","Amt. Expense - Equip","Maint-RSB","Maint","General Fund","MAINT>DEF",39714,null,"Andy Selig and Brian Judge"]
[68976703,1000,4150000000,"785200","Operational Services","Property Services","UTILITIES","Electricity","Utilities-RSB","Utilities","General Fund","MAINT>DEF",980000,null,"Andy Selig and Brian Judge"]
[68976703,1000,4150000000,"785400","Operational Services","Property Services","UTILITIES","Heating Fuel","Utilities-RSB","Utilities","General Fund","MAINT>DEF",580000,null,"Andy Selig and Brian Judge"]
[68976703,1000,4150000000,"785600","Operational Services","Property Services","UTILITIES","Water","Utilities-RSB","Utilities","General Fund","MAINT>DEF",62000,null,"Andy Selig and Brian Judge"]
[68976703,1000,4150000000,"785800","Operational Services","Property Services","UTILITIES","Sewer","Utilities-RSB","Utilities","General Fund","MAINT>DEF",166000,null,"Andy Selig and Brian Judge"]
[68976703,1000,4150000000,"787100","Operational Services","Property Services","UTILITIES","Municipal Levys and","Utilities-RSB","Utilities","General Fund","MAINT>DEF",12000,null,"Andy Selig and Brian Judge"]
[68978731,1000,5050000000,"631100","Operational Services","Student Transportati","TRAVEL","Travel - In Province","Board Trans Costs","NSSB/731","General Fund","TRANS-MGT>DEF",5000,null,"Denise Crouse"]
[68978731,6014,5100000000,"631400","Operational Services","Student Transportati","TRAVEL","Extra-Curricular Tra","Board Trans Costs","NSSB/731","Extra Curricular","TRANS >DEF",4500,null,"Denise Crouse"]
[68978731,1000,5100000000,"652900","Operational Services","Student Transportati","CONTRACTED_SERVICES","Other Prof.Services","Board Trans Costs","NSSB/731","General Fund","TRANS >DEF",30000,null,"Denise Crouse"]
[68978731,1000,5100000000,"711475","Operational Services","Student Transportati","CONTRACTED_SERVICES","Equipment - Lease","Board Trans Costs","NSSB/731","General Fund","TRANS >DEF",2600,null,"Denise Crouse"]
[68978731,1000,5100000000,"731300","Operational Services","Student Transportati","VEHICLE_EXPENSES","Veh.Fees/Licenses/In","Board Trans Costs","NSSB/731","General Fund","TRANS >DEF",140000,null,"Denise Crouse"]
[68978731,1000,5100000000,"731550","Operational Services","Student Transportati","CONVEYANCE","Student Conveyance","Board Trans Costs","NSSB/731","General Fund","TRANS >DEF",95000,null,"Denise Crouse"]
[68978731,1000,5050000000,"784800","Operational Services","Student Transportati","SUPPLIES/MATERIALS","Telecomm - Cellular","Board Trans Costs","NSSB/731","General Fund","TRANS-MGT>DEF",1750,null,"Denise Crouse"]
[68978731,1000,5100000000,"797600","Operational Services","Student Transportati","INSURANCE","Insurance - Vehicles","Board Trans Costs","NSSB/731","General Fund","TRANS >DEF",66200,null,"Denise Crouse"]
[68978731,1000,5100000000,"814450","Operational Services","Student Transportati","PROFESSIONAL_DEV","In Ser.-Non-Teach.No","Board Trans Costs","NSSB/731","General Fund","TRANS >DEF",12000,null,"Denise Crouse"]
[68978731,1000,5100000000,"814600","Operational Services","Student Transportati","PROFESSIONAL_DEV","PD-Non-Teachers Cont","Board Trans Costs","NSSB/731","General Fund","TRANS >DEF",14000,null,"Denise Crouse"]
[68978731,1000,5100000000,"827140","Operational Services","Student Transportati","TCA_EXPENSE","Amt. Expense - Equip","Board Trans Costs","NSSB/731","General Fund","TRANS >DEF",37802,null,"Denise Crouse"]

{"sheet":"Positions","index":6,"n_rows":49,"n_cols":1,"rows_kept":49,"cut":false,"hidden":true,"merged":[]}
["Accounting Clerk"]
["Administrative Assistant"]
["A/P Supervisor"]
["Assistive Technology"]
["Board Member"]
["Board Secretary"]
["Bus Driver"]
["Confidential Administrative Assist."]
["Consultant"]
["Coordinator"]
["Custodian - Casual"]
["Custodian"]
["Director"]
["Dispatcher"]
["Executive Assistant"]
["Guidance"]
["Head Payroll Clerk"]
["Head Mechanic"]
["Homestay Coordinator"]
["IT Support Specialist"]
["Janitor - Casual"]
["Janitor"]
["Lead Hand Mechanic"]
["Library Tech/Clerk"]
["Manager"]
["Mechanic"]
["Motor Vehicle Body Repairer"]
["Other"]
["Payroll Clerk"]
["Personal Officer"]
["Principal"]
["Psychologist"]
["PSA"]
["PST"]
["Procurement Analyst"]
["Reading Recovery"]
["Schools Plus"]
["SLD"]
["SLP"]
["Spare Bus Driver"]
["Student Support Workers"]
["Substitute Administrative Assistant"]
["Superintendent"]
["Supervisor of Technology Services"]
["Teacher"]
["Tradesperson"]
["Transition Facilitator"]
["Transportation Officer"]
["Vice-Principal"]

{"sheet":"GL_1","index":7,"n_rows":18,"n_cols":1,"rows_kept":18,"cut":false,"hidden":true,"merged":[]}
["631100 Mileage"]
["635400 Accomodations"]
["631200 Travel-Out of NS"]
["635500 Accomodations-Out of NS"]
["786400 Supplies & Materials"]
["814100 Conference-In Province"]
["814150 Conference-Out of Province"]
["814200 Conference-Contract"]
["814300 Inservice Teachers Contract"]
["814350 Inservice Teachers Non-Contract"]
["814400 Inservice Non-Teachers Contract"]
["814450 Inservice NT Non-Contract"]
["814500 PD - Teachers Contract"]
["814550 PD - Teachers Non-Contract"]
["814600 PD - Non-Teachers Contract"]
["814650 PD-NT Non-Contract"]
["627550 Other Benefits"]
["784100 Home Internet (contract only)"]

{"sheet":"GL_Mileage","index":8,"n_rows":1,"n_cols":1,"rows_kept":1,"cut":false,"hidden":true,"merged":[]}
["631100 Mileage"]